Workbook

Sheet Instructions
B2: MassDOT Safety Alternatives Analysis Guide Spreadsheet Tool
B3: Method 3 - Observed Crash Frequency
B5: Overview | L5: Color Coding Rules
B7: This Excel file has been developed to assist analyis in conducting Safety Alternative Analysis. The SPFs were developed as a part of the project entitled "Calibration of Safety Performance Functions and Crash Modification Factors for Massachusetts’ Urban Intersections". | L7: The worksheets include three color options to help users identify locations where input data is required.
L10: Color Used | N10: Type of Information Required from User
B11: Macros must be enable to use this spreadsheet
L12: Sample | N12: Required input information as identified in the HSM. To be keyed in manually.
L13: Text
B14: The contents of this Excel file include the following:
L15: Sample | N15: Input data required from the user but restricted to options provided in the pull-down menu.
B16: Worksheet Name | E16: Contents | L16: Text
B18: Instructions | E18: The worksheet you are seeing now provides an overview of the Excel file, summary of the worksheets and the color coding rules. | L18: Sample | N18: Optional input information that can be used to supplement the analysis if this information is available.
L19: Text
B21: CMFs | E21: Provides the State-Preferred CMF List. In cases where a CMF for a treatment is not provided in this list, the analyst should work with MassDOT to identify an appropriate value for analysis.
B25: Input | E25: Contains input required to perform the analysis. For detailed explanation on input fields, please refer to the MassDOT Safety Analysis Guide. At end of sheet, the Run Report macro must be run to obtain results in the Output worksheet.
B29: Output | E29: Summarizes the results of the analysis.
B31: Year #, Design Year | E31: Internal SPF worksheets. | L31: Acknowledgement
L33: University of Massachusetts Lowell (SPF development).
E34: Please do NOT change any of the hidden worksheets. | L34: VHB, Inc.
A39: Last Updated: September 2024

Sheet CMFs
A1: Facility | B1: Countermeasure | C1: Crash Type | D1: All Severity CMF | E1: FI CMF | F1: Area Type | G1: Prior Condition | H1: Site Description | I1: Notes | J1: Resource 1 | K1: Resource 2 | L1: Resource 3
A2: Pedestrian and Bicycle | B2: Add Separated Bike Lane | C2: Vehicle-Bicycle | D2: 0.26 | E2: 0.26 | F2: Urban | G2: No Bicycle Infrastructure | H2: Urban Street | I2: Assumed KABC CMF applies to all because all Bike crashes are assumed to be KABC | J2: http://www.cmfclearinghouse.org/detail.cfm?facid=4097
B3: Add Separation between Road and Bike Lane | C3: Vehicle-Bicycle | D3: 0.63 | E3: 0.63 | F3: Urban | G3: Bike Lane with No Buffer | H3: Urban Street | J3: Cross-Sectional Comparison of Cycle Track and Bike Lane CMF
B4: Add Shared Use Path | C4: Vehicle-Bicycle | D4: 0.75 | E4: 0.75 | F4: Urban | G4: No Shared Use Path Present | H4: Principal Arterial Other, Minor arterial, major and minor collectors | J4: http://www.cmfclearinghouse.org/detail.cfm?facid=9250
B5: Add Sidewalk - Urban | C5: Vehicle-Pedestrian | D5: 0.12 | E5: 0.12 | F5: Urban/Suburban | G5: No Sidewalk Present | J5: https://www.pedbikeinfo.org/cms/downloads/WalkingAlongRoadways_Study_Guidelines.pdf
B6: Add Wide Paved Shoulder for Pedestrian Walkway | C6: Vehicle-Pedestrian | D6: 0.29 | E6: 0.29 | F6: Rural | G6: Narrow, Unwalkable Shoulder | H6: Rural Highway with Pedestrian Traffic | J6: https://safety.fhwa.dot.gov/speedmgt/ref_mats/fhwasa1304/resources/CRF%20Desktop%20Reference.pdf
B7: Advanced Pedestrian Crossing Signage | C7: Vehicle-Pedestrian | D7: 0.75 | E7: 0.75 | F7: Urban and Suburban | G7: No Advanced Warning Signage or Markings | H7: Mid-Block and Intersection Crossings | I7: Minimum of 340 to Maximum of 52892 Annual Average Daily Traffic (AADT) | J7: http://www.cmfclearinghouse.org/detail.cfm?facid=9017
B8: Bike box | C8: Vehicle-Bicycle | D8: 0.65 | E8: 0.65 | F8: Urban | G8: No Bike Box | H8: Signalized Intersection | J8: Herrstedt, L., M.A. Nielsen, L. Agústson, K.M.L. Krogsgaard, E. Jørgensen, and N.O. Jørgensen. Safety of Cyclists in Urban Areas: Danish Experiences. Copenhagen, Denmark: Danish Road Directorate, 1994 via Signalized Intersections Informational Guide
B9: Bike lane | C9: All | D9: =AVERAGE(0.7859,1.3065,0.901,0.558,0.435,0.51,0.643,0.734,0.694,0.649) -> 0.72164 | E9: 0.93 | F9: Urban | G9: No Bike Lane | H9: Urban Street | I9: FI CMF only applicable for Method 3. Weighted average from http://www.cmfclearinghouse.org/study_detail.cfm?stid=618. KABC CMF is a weighted average of all KABC CMFs in the study | J9: http://www.cmfclearinghouse.org/study_detail.cfm?stid=618
B10: Convert to High-Visibility Crosswalk | C10: Vehicle-Pedestrian | D10: 0.52 | E10: 0.52 | F10: Urban | G10: Standard Crosswalk Markings | H10: Three or Four Leg Intersection | I10: Signalized and unsignalized intersections. | J10: https://www.sciencedirect.com/science/article/abs/pii/S0001457512001613 | K10: http://www.cmfclearinghouse.org/detail.cfm?facid=4123
B11: Exclusive Pedestrian Phase | C11: Vehicle-Pedestrian | D11: 0.49 | E11: 0.49 | F11: Urban | G11: Signalized Intersection without Exclusive Phase | H11: Signalized Intersection | I11: 3-leg,4-leg,More than 4 legs intersection | J11: http://www.cmfclearinghouse.org/detail.cfm?facid=4117
B12: Implement Leading Pedestrian Interval | C12: All | D12: 0.9 | E12: 0.83 | F12: Urban and Suburban | G12: No Leading Pedestrian Interval | H12: Urban Signalized Intersection | I12: FI CMF only applicable for Method 3 | J12: http://www.cmfclearinghouse.org/detail.cfm?facid=9902 | K12: http://www.cmfclearinghouse.org/detail.cfm?facid=9901
B13: Increase Pedestrian Crossing Time | C13: Vehicle-Pedestrian | D13: 0.49 | E13: 0.49 | F13: Urban | G13: Standard Crossing Time | H13: Signalized Intersection with Pedestrian Crossing Phase | I13: 3-leg,4-leg,More than 4 legs | J13: http://www.cmfclearinghouse.org/detail.cfm?facid=4115
B14: Install Crosswalk Lighting | C14: Vehicle-Pedestrian | D14: 0.41 | E14: 0.41 | F14: All | G14: No Lighting Present | H14: Intersection | J14: http://www.cmfclearinghouse.org/detail.cfm?facid=440 | K14: http://www.cmfclearinghouse.org/detail.cfm?facid=441
B15: Install Grade-Separated Pedestrian Crossing | C15: Vehicle-Pedestrian | D15: 0.14 | E15: 0.14 | F15: Urban | G15: At-Grade Pedestrian Crossing | H15: Pedestrian Crossing | J15: https://lctr.eng.fiu.edu/Documents/CRFFinalReport.pdf
B16: Install Median Island for Pedestrian Crossing at Controlled Crossing | C16: Vehicle-Pedestrian | D16: 0.711 | E16: 0.734 | F16: Urban and Suburban | G16: Two-Way Left-Turn Lane | H16: Signalized Pedestrian Crossing | I16: FI CMF only applicable for Method 3. Minimum of 10500 to Maximum of 57000 Annual Average Daily Traffic (AADT) | J16: http://www.cmfclearinghouse.org/detail.cfm?facid=5075 | K16: http://www.cmfclearinghouse.org/detail.cfm?facid=5076
B17: Install Median Island for Pedestrian Crossing at Uncontrolled Crossing | C17: Vehicle-Pedestrian | D17: 0.685 | E17: 0.685 | F17: Urban and Suburban | G17: No Raised Median Present | H17: Uncontrolled Pedestrian Crossing | J17: http://www.cmfclearinghouse.org/detail.cfm?facid=8799
B18: Install Pedestrian Countdown Timer | C18: All | D18: 0.912 | E18: 0.952 | G18: No Pedestrian Countdown Timer | H18: 4- legged signalized Intersection with Pedestrian Crossing | I18: FI CMF only applicable for Method 3. | J18: http://www.cmfclearinghouse.org/detail.cfm?facid=8791 | K18: http://www.cmfclearinghouse.org/detail.cfm?facid=8790
B19: Install Pedestrian Hybrid Beacon (or HAWK Crossing) | C19: Vehicle-Pedestrian | D19: 0.543 | E19: 0.55 | F19: Urban and Suburban | G19: No PHB/HAWK | H19: Uncontrolled Pedestrian Crossing | J19: http://www.cmfclearinghouse.org/detail.cfm?facid=10608 | K19: http://www.cmfclearinghouse.org/detail.cfm?facid=10607
B20: Install Raised Pedestrian Crossing | C20: All | D20: 0.7 | E20: 0.64 | G20: Flat Pedestrian Crossing | H20: Pedestrian Crossing | I20: FI CMF only applicable for Method 3. | J20: Bahar, G., Parkhill, M., Hauer, E., Council, F., Persaud, B., Zegeer, C., Elvik, R., Smiley, A., and Scott, B. “Prepare Parts I and II of a Highway Safety Manual: Knowledge Base for Part II”. Unpublished material from NCHRP Project 17-27, (May 2007). | K20: https://safety.fhwa.dot.gov/ped_bike/tools_solve/fhwasa18041/fhwasa18041.pdf
B21: Install Rectangular Rapid Flashing Beacon (RRFB) | C21: Vehicle-Pedestrian | D21: 0.526 | E21: 0.526 | F21: Urban and Suburban | G21: No RRFB Present | H21: Uncontrolled Pedestrian Crossing | J21: http://www.cmfclearinghouse.org/detail.cfm?facid=9024
A22: Interchanges | B22: Add Interchange Lighting | C22: All | D22: 0.5 | E22: 0.74 | F22: All | G22: No Lighting Present | H22: Interchange | I22: Proportionally adjusted from the target crash type (nighttime) to all crashes | J22: http://www.cmfclearinghouse.org/detail.cfm?facid=1283 | K22: http://www.cmfclearinghouse.org/detail.cfm?facid=1284
B23: Add Lane to Interchange Ramp | C23: All | D23: 2.15 | E23: 1.62 | F23: Urban and Suburban | G23: One Lane on Ramp | H23: Interchange Entrance or Exit Ramp | I23: Proportionally adjusted from FI and PDO to All | J23: Highway Safety Manual Equation 19-20 and Table 19-5
B24: Convert Diamond Interchange to a Diverging Diamond Interchange | C24: All | D24: 0.67 | E24: 0.59 | F24: Suburban | G24: Traditional Diamond Interchange | H24: Diamond Interchange | I24: Speed limit 40-45 mph | J24: http://www.cmfclearinghouse.org/detail.cfm?facid=8278 | K24: http://www.cmfclearinghouse.org/detail.cfm?facid=8258
B25: Extend Acceleration Lane from X Miles to Y Miles | C25: All | D25: exp(-2.59*[Y-X]) | E25: exp(-4.55*[Y-X]) | G25: Acceleration Lane Length of X Miles | H25: Freeway Interchange Area | I25: Principal Arterial Interstate | J25: http://www.cmfclearinghouse.org/detail.cfm?facid=5216 | K25: http://www.cmfclearinghouse.org/detail.cfm?facid=5215
B26: Extend Deceleration Lane to 700 Feet | C26: All | D26: 0.41 | E26: 0.41 | G26: Expressway Deceleration Lane Less than 700 feet | H26: Expressway Approaching Exit | J26: http://www.cmfclearinghouse.org/study_detail.cfm?stid=303
B27: Increase Spacing Between Entrance Ramp and Exit Ramp from X Feet to Y Feet | C27: All | D27: exp(450/Y-450/X) | E27: exp(171/Y-171/X) | G27: X Feet Between Entrance and Exit Ramps | H27: Freeway Interchange Area | J27: http://www.cmfclearinghouse.org/detail.cfm?facid=7445 | K27: http://www.cmfclearinghouse.org/detail.cfm?facid=7444
B28: Provide Auxiliary Lane in Weaving Area | C28: All | D28: 0.79 | E28: 0.77 | G28: No Auxiliary Lane Between Ramps | H28: Freeway Interchange Area | J28: http://www.cmfclearinghouse.org/detail.cfm?facid=7441 | K28: http://www.cmfclearinghouse.org/detail.cfm?facid=7440
B29: Widen Ramp Lane Width from X Feet to Y Feet | C29: All | D29: (3149*exp[-0.0458*(Y-X)]+10168)/13317 | E29: exp[-0.0458*(Y-X)] | F29: All | G29: Lane Width of X Feet | H29: Freeway Ramp | I29: Proportionally adjusted from FI and PDO to All | J29: Highway Safety Manual Equation 19-34, Table 19-25 | K29: http://onlinepubs.trb.org/onlinepubs/nchrp/docs/nchrp17-45_fr.pdf
B30: Widen Ramp Left Shoulder Width from X Feet to Y Feet | C30: All | D30: (3149*exp[-0.0539*(Y-X)]+10168*exp[-0.0259*(Y-X)])/13317 | E30: exp[-0.0539*(Y-X)] | F30: All | G30: Right Shoulder Width of X Feet | H30: Freeway Ramp | I30: Proportionally adjusted from FI and PDO to All | J30: Highway Safety Manual Equation 19-35, Table 19-26 | K30: http://onlinepubs.trb.org/onlinepubs/nchrp/docs/nchrp17-45_fr.pdf
B31: Widen Ramp Right Shoulder Width from X Feet to Y Feet | C31: All | D31: (3149*exp[-0.0539*(Y-X)]+10168*exp[-0.0259*(Y-X)])/13317 | E31: exp[-0.0539*(Y-X)] | F31: All | G31: Right Shoulder Width of X Feet | H31: Freeway Ramp | I31: Proportionally adjusted from FI and PDO to All | J31: Highway Safety Manual Equation 19-35, Table 19-26 | K31: http://onlinepubs.trb.org/onlinepubs/nchrp/docs/nchrp17-45_fr.pdf
A32: Intersections | B32: Add 3-Inch Yellow Retroreflective Sheeting to Signal Backplates | C32: All | D32: 0.85 | E32: 0.85 | F32: Urban | G32: No Retroreflective Sheeting on Signals | H32: Signalized Intersection | J32: http://www.cmfclearinghouse.org/detail.cfm?facid=1410
B33: Add Flashing Lights at Railroad Grade Crossing | C33: All | D33: 0.21 | E33: 0.21 | G33: Static Signs | H33: At-Grade Railroad Crossing | J33: http://www.cmfclearinghouse.org/detail.cfm?facid=485
B34: Add Intersection Lighting | C34: All | D34: 0.98 | E34: 0.97521825 | F34: All | G34: No Lighting | H34: Intersection | I34: Proportionally adjusted from the target crash type (nighttime) to all crashes. 3-leg,4-leg intersection | J34: http://www.cmfclearinghouse.org/detail.cfm?facid=4462
B35: Add Low-Volume Driveway at Approach Corner of Signalized Intersection | C35: All | D35: 0.82 | E35: 0.79 | G35: No Driveway within 50 Feet of Approach Corner | H35: Four-Leg Signalized Intersection | J35: http://www.cmfclearinghouse.org/detail.cfm?facid=9738 | K35: http://www.cmfclearinghouse.org/detail.cfm?facid=9734
B36: Add Low-Volume Driveway at Receiving Corner of Signalized Intersection | C36: All | D36: 1.33 | E36: 1.29 | G36: No Driveway within 50 Feet of Receiving Corner | H36: Four-Leg Signalized Intersection | J36: http://www.cmfclearinghouse.org/detail.cfm?facid=9740 | K36: http://www.cmfclearinghouse.org/detail.cfm?facid=9736
B37: Change Intersection Skew Angle from X to Y at a Rural Four-Leg Stop-Control Intersection of Two Lane Highways | C37: All | D37: e^(0.0054*[Y-X]) | E37: e^(0.0054*[Y-X]) | F37: Rural | G37: Intersection Skew Angle of X Degrees | H37: Four-Leg Minor Stop-Controlled Intersection of Rural Two-Lane Highways | J37: Highway Safety Manual Equation 10-23
B38: Change Intersection Skew Angle from X to Y at a Rural Four-Leg Stop-Control Intersection with a Multilane Highway | C38: All | D38: ((0.053*Y)/(1.43+0.053*Y)+1)/((0.053*X)/(1.43+0.053*X)+1) | E38: ((0.048*Y)/(0.72+0.048*Y)+1)/((0.048*X)/(0.72+0.048*X)+1) | F38: Rural | G38: Intersection Skew Angle of X Degrees | H38: Four-Leg Minor Stop-Controlled Intersection with a Multilane Highway | J38: Highway Safety Manual Equation 11-21 | K38: Highway Safety Manual Equation 11-20
B39: Change Intersection Skew Angle from X to Y at a Rural Three-Leg Stop-Control Intersection of Two Lane Highways | C39: All | D39: e^(0.004*[Y-X]) | E39: e^(0.004*[Y-X]) | F39: Rural | G39: Intersection Skew Angle of X Degrees | H39: Three-Leg Minor Stop-Controlled Intersection of Rural Two-Lane Highways | J39: Highway Safety Manual Equation 10-22
B40: Change Intersection Skew Angle from X to Y at a Rural Three-Leg Stop-Control Intersection with a Multilane Highway | C40: All | D40: ((0.016*Y)/(0.98+0.016*Y)+1)/((0.016*X)/(0.98+0.016*X)+1) | E40: ((0.017*Y)/(0.52+0.017*Y)+1)/((0.017*X)/(0.52+0.017*X)+1) | F40: Rural | G40: Intersection Skew Angle of X Degrees | H40: Three-Leg Minor Stop-Controlled Intersection with a Multilane Highway | J40: Highway Safety Manual Equation 11-19 | K40: Highway Safety Manual Equation 11-18
B41: Change Left Turn Phasing from Permissive to Protected/Permissive on One Approach | C41: All | D41: 1.031 | E41: 0.962 | F41: Urban | G41: Permissive Left-Turn Phasing | H41: Four Leg Signalized Intersection Approach | I41: I use permissive/protected, but it can also be protective/permissive (no difference between lead or lag). This applies to all left-turn phasing CMFs | J41: http://www.cmfclearinghouse.org/detail.cfm?facid=4269 | K41: http://www.cmfclearinghouse.org/detail.cfm?facid=4268
B42: Change Left Turn Phasing from Permissive to Flashing Yellow Arrow on One Approach | C42: All | D42: 0.753 | E42: 0.753 | F42: Urban | G42: Permissive Left-Turn Phasing | H42: Four Leg Signalized Intersection Approach | J42: http://www.cmfclearinghouse.org/detail.cfm?facid=4174
B43: Change Left Turn Phasing from Permissive to Protected on One Approach | C43: All | D43: 0.94 | E43: 0.94 | F43: Urban and Suburban | G43: Permissive Left-Turn Phasing | H43: Signalized Intersection Approach | J43: Highway Safety Manual Table 12-25
B44: Change Left Turn Phasing from Permissive/Protected to Flashing Yellow Arrow on All Approaches | C44: All | D44: 0.922 | E44: 0.86 | F44: Urban | G44: Protective/Permissive Left-Turn Phasing | H44: Signalized Intersection | J44: http://www.cmfclearinghouse.org/detail.cfm?facid=9668 | K44: http://www.cmfclearinghouse.org/detail.cfm?facid=4176
B45: Change Left Turn Phasing from Permissive/Protected to Protected on Major Approach | C45: All | D45: 0.63964 | E45: 0.52282 | F45: Urban | G45: Protective/Permissive Left-Turn Phasing | H45: Signalized Intersection | I45: Proportionally adjusted from the target crash type (angle and left-turn) to all crashes | J45: http://www.cmfclearinghouse.org/detail.cfm?facid=339
B46: Change Left Turn Phasing from Permissive/Protected to Protected on Minor Approach | C46: All | D46: 0.65 | E46: 0.53728 | F46: Urban | G46: Protective/Permissive Left-Turn Phasing | H46: Signalized Intersection | I46: Proportionally adjusted from the target crash type (angle and left-turn) to all crashes | J46: http://www.cmfclearinghouse.org/detail.cfm?facid=337
B47: Change Left Turn Phasing from Protected to Flashing Yellow Arrow on All Approaches | C47: All | D47: 1.338 | E47: 1.338 | F47: Urban | G47: Protected Left-Turn Phasing | H47: Four-Leg Signalized Intersection | J47: http://www.cmfclearinghouse.org/detail.cfm?facid=4172
B48: Change the Number of Approaches with Left Turn Lanes from X to Y at a Rural Four-Leg Signalized Intersection of Two Lane Highways | C48: All | D48: 0.82^[Y-X] | E48: 0.82^[Y-X] | F48: Rural | G48: Left Turn Lanes on X Approaches | H48: Four-Leg Signalized Intersection of Two-Lane Rural Roads | J48: Highway Safety Manual Table 10-13
B49: Change the Number of Approaches with Left Turn Lanes from X to Y at an Urban or Suburban Four-Leg Signalized Intersection | C49: All | D49: 0.90^[Y-X] | E49: 0.90^[Y-X] | F49: Urban and Suburban | G49: Left Turn Lanes on X Approaches | H49: Four-Leg Signalized Intersection with an Arterial | J49: Highway Safety Manual Table 12-24
B50: Change the Number of Approaches with Left Turn Lanes from X to Y at an Urban or Suburban Three-Leg Signalized Intersection | C50: All | D50: 0.93^[Y-X] | E50: 0.93^[Y-X] | F50: Urban and Suburban | G50: Left Turn Lanes on X Approaches | H50: Three-Leg Signalized Intersection with an Arterial | J50: Highway Safety Manual Table 12-24
B51: Change the Number of Approaches with Right Turn Lanes from X to Y at a Rural Four-Leg Signalized Intersection of Two Lane Highways | C51: All | D51: 0.96^[Y-X] | E51: 0.96^[Y-X] | F51: Rural | G51: Right Turn Lanes on X Approaches | H51: Four-Leg Signalized Intersection of Two-Lane Rural Roads | J51: Highway Safety Manual Table 10-14
B52: Change the Number of Approaches with Right Turn Lanes from X to Y at an Urban or Suburban Four-Leg Signalized Intersection | C52: All | D52: 0.96^[Y-X] | E52: 0.96^[Y-X] | F52: Urban and Suburban | G52: Right Turn Lanes on X Approaches | H52: Four-Leg Signalized Intersection with an Arterial | J52: Highway Safety Manual Table 12-24
B53: Change the Number of Approaches with Right Turn Lanes from X to Y at an Urban or Suburban Three-Leg Signalized Intersection | C53: All | D53: 0.96^[Y-X] | E53: 0.96^[Y-X] | F53: Urban and Suburban | G53: Right Turn Lanes on X Approaches | H53: Three-Leg Signalized Intersection with an Arterial | J53: Highway Safety Manual Table 12-24
B54: Change the Number of Approaches with Right Turn on Red Prohibitied from X to Y | C54: All | D54: 0.98^[Y-X] | E54: 0.98^[Y-X] | G54: Right Turn on Red Permitted | H54: Signalized Intersection | J54: http://www.cmfclearinghouse.org/detail.cfm?facid=5194
B55: Change the Number of Major Approaches with Left Turn Lanes from X to Y at a Rural Four-Leg Stop-Controlled Intersection of Two Lane Highways | C55: All | D55: 0.72^[Y-X] | E55: 0.72^[Y-X] | F55: Rural | G55: Left Turn Lanes on X Major Approaches | H55: Four-Leg Minor Stop-Controlled Intersection of Two-Lane Rural Roads | J55: Highway Safety Manual Table 10-13
B56: Change the Number of Major Approaches with Left Turn Lanes from X to Y at a Rural Four-Leg Stop-Controlled Intersection with a Multilane Highway | C56: All | D56: 0.72^[Y-X] | E56: 0.65^[Y-X] | F56: Rural | G56: Left Turn Lanes on X Major Approaches | H56: Four-Leg Minor Stop-Controlled Intersection with Multilane Highway | J56: Highway Safety Manual Table 11-22
B57: Change the Number of Major Approaches with Left Turn Lanes from X to Y at an Urban or Suburban Four-Leg Stop-Controlled Intersection with an Arterial | C57: All | D57: 0.73^[Y-X] | E57: 0.73^[Y-X] | F57: Urban and Suburban | G57: Left Turn Lanes on X Major Approaches | H57: Four-Leg Minor Stop-Controlled Intersection with an Arterial | J57: Highway Safety Manual Table 11-22
B58: Change the Number of Major Approaches with Right Turn Lanes from X to Y at a Rural Four-Leg Stop-Controlled Intersection of Two Lane Highways | C58: All | D58: 0.86^[Y-X] | E58: 0.86^[Y-X] | F58: Rural | G58: Right Turn Lanes on X Major Approaches | H58: Four-Leg Minor Stop-Controlled Intersection of Two-Lane Rural Roads | J58: Highway Safety Manual Table 10-14
B59: Change the Number of Major Approaches with Right Turn Lanes from X to Y at a Rural Four-Leg Stop-Controlled Intersection with a Multilane Highway | C59: All | D59: 0.86^[Y-X] | E59: 0.77^[Y-X] | F59: Rural | G59: Right Turn Lanes on X Major Approaches | H59: Four-Leg Minor Stop-Controlled Intersection with Multilane Highway | J59: Highway Safety Manual Table 11-23
B60: Change the Number of Major Approaches with Right Turn Lanes from X to Y at an Urban or Suburban Four-Leg Stop-Controlled Intersection with an Arterial | C60: All | D60: 0.86^[Y-X] | E60: 0.86^[Y-X] | F60: Urban and Suburban | G60: Right Turn Lanes on X Major Approaches | H60: Four-Leg Minor Stop-Controlled Intersection with an Arterial | J60: Highway Safety Manual Table 11-22
B61: Convert a Signalized T-Intersection to a Continuous Green-T Intersection | C61: All | D61: 0.958 | E61: 0.846 | G61: Signalized 3-Leg Intersection | H61: 3-Leg Intersection | J61: http://www.cmfclearinghouse.org/detail.cfm?facid=8656 | K61: http://www.cmfclearinghouse.org/detail.cfm?facid=8655
B62: Convert All-Way Stop-Controlled Intersection to a Modern Roundabout | C62: All | D62: 1.114 | E62: 0.554 | F62: All | G62: All-Way Stop-Controlled Intersection | H62: 3-Leg or 4-Leg Intersection | I62: Minimum of 4100 (total entering) to Maximum of 48100 (total entering) Annual Average Daily Traffic (AADT) | J62: http://www.cmfclearinghouse.org/detail.cfm?facid=4933 | K62: http://www.cmfclearinghouse.org/detail.cfm?facid=4932
B63: Convert At-Grade Intersection to a Diverging Diamond Interchange | C63: All | D63: 0.42 | E63: 0.42 | G63: At-Grade Four-Leg Signalized Intersection | H63: At-Grade Four Leg Intersection | J63: http://www.cmfclearinghouse.org/detail.cfm?facid=9658
B64: Convert At-Grade Intersection to Interchange | C64: All | D64: 0.58 | E64: 0.43 | G64: At-Grade Four-Leg Intersection | H64: At-Grade Four-Leg Intersection | J64: http://www.cmfclearinghouse.org/detail.cfm?facid=459 | K64: http://www.cmfclearinghouse.org/detail.cfm?facid=460
B65: Convert Four-Leg Intersection to Two Three-Leg Intersections | C65: All | D65: 1.03 | E65: 0.75 | F65: Urban | G65: Four-Leg Intersection | H65: Intersection | I65: Proportionally adjusted from FI and PDO to All. No fatal or all CMF provided in study, presume 1 or apply ABC CMF? | J65: http://www.cmfclearinghouse.org/detail.cfm?facid=201 | K65: http://www.cmfclearinghouse.org/detail.cfm?facid=203
B66: Convert from Minor Stop-Control to All-Way Stop-Control | C66: All | D66: 0.46 | E66: 0.3 | F66: Urban | G66: Minor Stop-Controlled Intersection | H66: Stop-controlled Intersection | I66: All severity CMF is proportionally adjusted from the Angle and Rear End CMF | J66: http://www.cmfclearinghouse.org/detail.cfm?facid=310 | K66: http://www.cmfclearinghouse.org/detail.cfm?facid=311 | L66: http://www.cmfclearinghouse.org/detail.cfm?facid=314
B67: Convert from Pedestal-Mounted Traffic Signal to Mast Arm-Mounted Traffic Signal | C67: All | D67: 0.71 | E67: 0.71 | G67: Signalized Intersection with Post-Mounted Traffic Signals | H67: Signalized Intersection | J67: http://www.cmfclearinghouse.org/detail.cfm?facid=1422
B68: Convert from Pedestal-Mounted Traffic Signal to Span Wire-Mounted Traffic Signal | C68: All | D68: 0.71 | E68: 0.71 | G68: Signalized Intersection with Post-Mounted Traffic Signals | H68: Signalized Intersection | J68: http://www.cmfclearinghouse.org/detail.cfm?facid=1422
B69: Convert from Span Wire-Mounted Traffic Signal to Mast Arm-Mounted Traffic Signal | C69: All | D69: 0.97 | E69: 0.98 | F69: All | G69: Signalized Intersection with Span Wire-Mounted Traffic Signals | H69: Signalized Intersection | J69: http://www.cmfclearinghouse.org/detail.cfm?facid=9405 | K69: http://www.cmfclearinghouse.org/detail.cfm?facid=9404
B70: Convert from two 3-leg intersections Offset by L Miles to a 4-leg intersection with Major Road AADT | C70: All | D70: ((0.05-0.005*ln(AADT))/L+0.322)/(2*(0.05-0.005*ln(AADT))/L+0.322) | E70: ((0.05-0.005*ln(AADT))/L+0.322)/(2*(0.05-0.005*ln(AADT))/L+0.322) | F70: Rural | G70: Two Three-Leg Intersections Offset by X Miles | H70: Rural Intersections | J70: Highway Safety Manual Equation 10-17
B71: Convert from Two-Way Stop-Control to Signalized Intersection | C71: Multi-Vehicle | D71: 0.57 | E71: 0.46 | F71: Urban/Suburban | G71: Minor Stop-Controlled Intersection | H71: Three-Leg or Four-Leg Intersection | J71: MassDOT CMF Memo
B72: Convert Minor Stop-Control Intersection to Modern Roundabout | C72: Multi-Vehicle | D72: 0.48 | E72: 0.16 | F72: Urban/Suburban | G72: Minor Stop-Controlled Intersection | H72: Four-Leg Intersection | J72: MassDOT CMF Memo
B73: Convert Signalized Intersection to Modern Roundabout | C73: All | D73: 0.792 | E73: 0.342 | F73: Urban and Suburban | G73: Signalized Intersection | H73: Three-leg, Four-leg Signalized Intersection | J73: http://www.cmfclearinghouse.org/detail.cfm?facid=4253 | K73: http://www.cmfclearinghouse.org/detail.cfm?facid=4252
B74: Convert Two-Way Stop-Control Intersection to Right-In-Right-Out Operations | C74: All | D74: 0.55 | E74: 0.55 | F74: Urban | G74: Three-Leg Stop-Controlled Intersection with Left-Turns Allowed | H74: Three-Leg Intersection | J74: http://www.cmfclearinghouse.org/detail.cfm?facid=9821
B75: Extend Left Turn Lane | C75: All | D75: 0.72 | E75: 0.76 | F75: Urban | G75: Turn Lane with Insufficient Length | H75: Signalized Intersection | I75: Proportionally adjusted from the target crash types (rear end and sideswipe) to all crashes | J75: https://journals.sagepub.com/doi/pdf/10.1177/0361198120920270
B76: Extend Right Turn Lane | C76: All | D76: 0.72 | E76: 0.76 | F76: Urban | G76: Turn Lane with Insufficient Length | H76: Signalized Intersection | I76: Proportionally adjusted from the target crash types (rear end and sideswipe) to all crashes | J76: https://journals.sagepub.com/doi/pdf/10.1177/0361198120920270
B77: Flatten Vertical Curve on Intersection Approach to Increase Stopping Sight Distance | C77: All | D77: 0.7 | E77: 0.62 | F77: Rural | G77: Intersection Downstream from a Crest Vertical Curve with Limited Sight Distance | H77: Rural Segment with Downstream Intersection | I77: Speed Limit 25-65 mph; applies to crest vertical curves. Taken as the inverse of the CMFs. | J77: http://www.cmfclearinghouse.org/detail.cfm?facid=6871 | K77: http://www.cmfclearinghouse.org/detail.cfm?facid=6870
B78: General Signalized Intersection Improvements at an HSIP Cluster | C78: Multi-Vehicle | D78: 0.81 | E78: 0.67 | F78: Urban/Suburban | G78: No Hidden Intersection, Driveway or Curve | H78: Signalized Intersection | I78: Improvements include any combination of repaving, new pavement markings, upgrading signal timing and equipment | J78: MassDOT CMF Memo
B79: High Friction Surface Treatment on Intersection Approach | C79: All | D79: 0.799 | E79: 0.799 | F79: All | G79: Intersection with Low Friction Numbers | H79: Signalized or Stop-Controlled Intersection | J79: http://www.cmfclearinghouse.org/detail.cfm?facid=2259
B80: Increase All Red Clearance Interval | C80: All | D80: 0.798 | E80: 0.863 | F80: Urban | G80: All-Red Clearance Interval Shorter than 1 Second | H80: Signalized Intersection | I80: Three-leg, four-leg signalized | J80: http://www.cmfclearinghouse.org/detail.cfm?facid=4212 | K80: http://www.cmfclearinghouse.org/detail.cfm?facid=4211
B81: Increase Intersection Triangle Sight Distance from X Feet of Available Sight Distance to Y Feet | C81: All | D81: 0.64*exp(203.368*[1/Y-1/X])+0.36 | E81: 0.71*exp(195.791*[1/Y-1/X])+0.29 | I81: Proportionally adjusted from the target crash type (angle and left-turn) to all crashes | J81: Eccles, Kimberly, Scott Himes, Kara Peach, Frank Gross, Richard J. Porter, Timothy J. Gates, and Christopher M. Monsere. Guidance for Evaluating the Safety Impacts of Intersection Sight Distance, National Cooperative Highway Research Program, Report 875, Washington, D.C., 2018. Available at https://www.nap.edu/download/25081
B82: Increase Yellow Change Interval by One Second | C82: All | D82: 1.14 | E82: 1.07 | F82: Urban | G82: Existing Yellow Change Interval | H82: Signalized Intersection | I82: Three-leg, four-leg signalized | J82: http://www.cmfclearinghouse.org/detail.cfm?facid=4208 | K82: http://www.cmfclearinghouse.org/detail.cfm?facid=4207
B83: Innovative Intersection - Median U-Turn | C83: All | D83: 0.633 | E83: 0.7732 | F83: Urban and Suburban | G83: Signalized Intersection | H83: Four-Leg Signalized Intersection | J83: http://www.cmfclearinghouse.org/detail.cfm?facid=10851 | K83: http://www.cmfclearinghouse.org/detail.cfm?facid=10852
B84: Innovative Intersection - RCUT | C84: All | D84: 0.8 | E84: 0.8 | F84: All | G84: Both signalized and stop-controlled intersections | H84: Four-Leg Intersection | I84: Speed Limit >= 55 mph | J84: http://www.cmfclearinghouse.org/detail.cfm?facid=10382
B85: Innovative Intersection - Displaced Left Turn | C85: All | D85: 0.88 | E85: 0.88 | G85: Signalized Intersection | H85: Four-Leg Intersection | J85: https://www.researchgate.net/publication/327915966_Development_of_Crash_Modification_Factors_for_Continuous_Flow_Intersections
B86: Innovative Intersection - Signalized RCUT | C86: All | D86: 0.7632 | E86: 0.05669 | F86: Urban and Suburban | G86: Signalized Intersection | H86: Four-Leg Signalized Intersection | J86: http://www.cmfclearinghouse.org/detail.cfm?facid=10880 | K86: http://www.cmfclearinghouse.org/detail.cfm?facid=10879
B87: Install Adaptive Traffic Signal Control | C87: All | D87: 0.948 | E87: 0.958 | G87: Traditional Traffic Signal | H87: Signalized Intersection | J87: http://www.cmfclearinghouse.org/detail.cfm?facid=10561 | K87: http://www.cmfclearinghouse.org/detail.cfm?facid=10559
B88: Install Advance Warning Dilemma Zone Protection System at Signalized Intersection | C88: All | D88: 0.918 | E88: 0.89 | G88: No Dilemma Zone Warning System | H88: High-Speed Signalized Intersection | J88: http://www.cmfclearinghouse.org/detail.cfm?facid=4857 | K88: http://www.cmfclearinghouse.org/detail.cfm?facid=4855
B89: Install Flashing Lights and Sound Signals at Railroad Grade Crossing | C89: All | D89: 0.5 | E89: 0.5 | G89: Static Signs | H89: At-Grade Railroad Crossing | J89: http://www.cmfclearinghouse.org/detail.cfm?facid=482
B90: Install Gates and Signs at Railroad Grade Crossing | C90: All | D90: 0.07 | E90: 0.07 | G90: Static Signs | H90: At-Grade Railroad Crossing | J90: http://www.cmfclearinghouse.org/detail.cfm?facid=493
B91: Install Red Signal Ahead Sign | C91: All | D91: 0.86 | E91: 0.8313 | F91: Urban | G91: Signalized Intersection without "Red Signal Ahead" Warning Sign | H91: Signalized Intersection | I91: Proportionally adjusted from FI and PDO to All. Proportionally adjusted from the target crash type (angle) to all crashes | J91: http://www.cmfclearinghouse.org/detail.cfm?facid=1684
B92: Install Transverse Rumble Strips on Stop Controlled Approaches | C92: All | D92: 0.87 | E92: 0.71 | F92: Rural | G92: No Transverse Rumble Strips | H92: Four-leg Stop-Controlled Intersection | J92: http://www.cmfclearinghouse.org/detail.cfm?facid=9045 | K92: http://www.cmfclearinghouse.org/detail.cfm?facid=9046
B93: Optimimize Total Change Period to Greater than ITE Recommended | C93: All | D93: 0.922 | E93: 0.937 | F93: Urban | G93: Total Change Interval Less Than ITE Recommended | H93: Signalized Intersection | J93: http://www.cmfclearinghouse.org/detail.cfm?facid=4219 | K93: http://www.cmfclearinghouse.org/detail.cfm?facid=4220
B94: Provide a Left Turn Lane on a Major Approach at a Rural Three-Leg Stop-Controlled Intersection of Two Lane Highways | C94: All | D94: 0.56 | E94: 0.56 | F94: Rural | G94: No Left Turn Lane on Major Approach | H94: Three-Leg Minor Stop-Controlled Intersection of Two-Lane Rural Roads | J94: Highway Safety Manual Table 10-13
B95: Provide a Left Turn Lane on a Major Approach at a Rural Three-Leg Stop-Controlled Intersection with a Multilane Highway | C95: All | D95: 0.56 | E95: 0.45 | F95: Rural | G95: No Left Turn Lane on Major Approach | H95: Three-Leg Minor Stop-Controlled Intersection with Multilane Highway | J95: Highway Safety Manual Table 11-22
B96: Provide a Left Turn Lane on a Major Approach at an Urban or Suburban Three-Leg Stop-Controlled Intersection with an Arterial | C96: All | D96: 0.67 | E96: 0.67 | F96: Urban and Suburban | G96: No Left Turn Lane on Major Approach | H96: Three-Leg Minor Stop-Controlled Intersection with an Arterial | J96: Highway Safety Manual Table 11-22
B97: Provide a Right Turn Lane on a Major Approach at a Rural Three-Leg Stop-Controlled Intersection of Two Lane Highways | C97: All | D97: 0.86 | E97: 0.86 | F97: Rural | G97: No Right Turn Lane on Major Approach | H97: Three-Leg Minor Stop-Controlled Intersection of Two-Lane Rural Roads | J97: Highway Safety Manual Table 10-14
B98: Provide a Right Turn Lane on a Major Approach at a Rural Three-Leg Stop-Controlled Intersection with a Multilane Highway | C98: All | D98: 0.86 | E98: 0.77 | F98: Rural | G98: No right Turn Lane on Major Approach | H98: Three-Leg Minor Stop-Controlled Intersection with Multilane Highway | J98: Highway Safety Manual Table 11-23
B99: Provide a Right Turn Lane on a Major Approach at an Urban or Suburban Three-Leg Stop-Controlled Intersection with an Arterial | C99: All | D99: 0.86 | E99: 0.86 | F99: Urban and Suburban | G99: No Right Turn Lane on Major Approach | H99: Three-Leg Minor Stop-Controlled Intersection with an Arterial | J99: Highway Safety Manual Table 11-22
B100: Provide Advance Street Name Signs | C100: All | D100: 0.984 | E100: 0.99 | F100: All | G100: No Advanced Street Signs | H100: Signalized Intersection | J100: http://www.cmfclearinghouse.org/detail.cfm?facid=2450 | K100: http://www.cmfclearinghouse.org/detail.cfm?facid=2449
B101: Remove Minor Street Leg from Four Leg Signalized Intersection | C101: All | D101: 0.74 | E101: 0.74 | F101: Urban and Suburban | G101: Four-Leg Signalized Intersection | H101: Signalized Intersection | I101: Cross-sectional comparison of 4SG and 3SG SPFs | J101: MassDOT Intersection SPFs
B102: Remove Minor Street Leg from Four Leg Stop-Controlled Intersection | C102: All | D102: 0.98 | E102: 0.98 | F102: Urban and Suburban | G102: Four-Leg Stop-Controlled Intersection | H102: Stop-Controlled Intersection | I102: Cross-sectional comparison of 4ST and 3ST SPFs | J102: MassDOT Intersection SPFs
B103: Replace 8-Inch Signal Heads with 12-Inch Signal Heads | C103: All | D103: 0.97 | E103: 0.97 | G103: Signalized Intersection with 8-Inch Signal Heads | H103: Signalized Intersection | J103: http://www.cmfclearinghouse.org/detail.cfm?facid=2334
B104: Replace Incandescent Signal Bulbs with LEDs - 3-Leg Intersection | C104: All | D104: 1.04 | E104: 1.17 | F104: Urban | G104: Incandescent Bulbs | H104: 3-Leg Signalized Intersection | J104: http://www.cmfclearinghouse.org/detail.cfm?facid=4891 | K104: http://www.cmfclearinghouse.org/detail.cfm?facid=4890
B105: Replace Incandescent Signal Bulbs with LEDs - 4-Leg Intersection | C105: All | D105: 0.982 | E105: 1.047 | F105: Urban | G105: Incandescent Bulbs | H105: 4-Leg Signalized Intersection | J105: http://www.cmfclearinghouse.org/detail.cfm?facid=4899 | K105: http://www.cmfclearinghouse.org/detail.cfm?facid=4898
B106: Shift Left Turn Lane to Create Positive Offset | C106: All | D106: 0.662 | E106: 0.644 | G106: Left Turn Lanes with Negative Offset | H106: Four-Leg Intersection | J106: http://www.cmfclearinghouse.org/detail.cfm?facid=6096 | K106: http://www.cmfclearinghouse.org/detail.cfm?facid=6095
B107: Signalizing driveway (Commercial, industrial, residential?) | C107: Multi-Vehicle | D107: 0.57 | E107: 0.46 | F107: Urban/Suburban | G107: Minor Stop-Controlled Intersection | H107: Three-Leg or Four-Leg Intersection | J107: MassDOT CMF Memo
B108: Systemic Stop-Control Intersection Improvements | C108: All | D108: 0.917 | E108: 0.899 | F108: All | G108: Stop-Controlled Intersection without Supplemental Signage or Pavement Markings | H108: Stop-Controlled Intersection | J108: http://www.cmfclearinghouse.org/detail.cfm?facid=8867 | K108: http://www.cmfclearinghouse.org/detail.cfm?facid=8866
A109: Freeway Segments | B109: Add Roadside Guardrail | C109: All | D109: 1.00043628 | E109: 0.9750513528 | G109: No Roadside Barrier Present | H109: Freeway Segment | I109: Proportionally adjusted from the target crash type (run off road) to all crashes; Speed Limit 50-70 mph | J109: http://www.cmfclearinghouse.org/detail.cfm?facid=8395 | K109: http://www.cmfclearinghouse.org/detail.cfm?facid=8394
B110: Add Segment Lighting | C110: All | D110: 0.94 | E110: 0.9034293194 | F110: All | G110: No Lighting Present | H110: Freeway/Expressway Segment | I110: Proportionally adjusted from FI and PDO to All. Proportionally adjusted from the target crash type (nighttime) to all crashes | J110: http://www.cmfclearinghouse.org/detail.cfm?facid=581 | K110: http://www.cmfclearinghouse.org/detail.cfm?facid=582
B111: Add Thru Lane on Segment (via Restriping) | C111: All | D111: 0.93 | E111: 0.76 | F111: Urban | G111: Fewer Lanes | H111: Freeway Segment | I111: Speed Limit >50 mph; Proportionally adjusted from FI and PDO to All | J111: http://www.cmfclearinghouse.org/detail.cfm?facid=8334
B112: Adding a New Off-Ramp | C112: All | D112: Contact MassDOT | E112: Contact MassDOT | F112: All | G112: No Off Ramp Present | H112: Freeway Segment | I112: CMF spreadsheet to be provided "Entrance Ramp Calculator to Calculate CMF". Proportionally adjusted from FI and PDO to All. These CMFs provide a rough estimate of expected changes to safety performance with interchange modifications. We recommend using IHSDM or ISATe to perform a more detailed review. | J112: HSM Chapters 18 and 19
B113: Adding a New On-Ramp | C113: All | D113: Contact MassDOT | E113: Contact MassDOT | F113: All | G113: No On Ramp Present | H113: Freeway Segment | I113: CMF spreadsheet to be provided "Exit Ramp Calculator to Calculate CMF". These CMFs provide a rough estimate of expected changes to safety performance with interchange modifications. We recommend using IHSDM or ISATe to perform a more detailed review. Proportionally adjusted from FI and PDO to All. | J113: HSM Chapters 18 and 19
B114: Addition of raised pavement reflectors | C114: All | D114: 0.99 | E114: 0.9785398487 | F114: Rural | G114: No raised pavement markers | H114: Freeway/Expressway Segment | I114: Proportionally adjusted from FI and PDO to All. Proportionally adjusted from the target crash type (nighttime) to all crashes | J114: http://www.cmfclearinghouse.org/detail.cfm?facid=110
B115: Change from other type of weave to Type B Weave | C115: Multi-Vehicle | D115: Contact MassDOT | E115: Contact MassDOT | F115: All | G115: Non-Type B Weave Present | H115: Freeway Segment | I115: CMF spreadsheet to be provided "Convert to Type B Weave". These CMFs provide a rough estimate of expected changes to safety performance with interchange modifications. We recommend using IHSDM or ISATe to perform a more detailed review. Proportionally adjusted from FI and PDO to All | J115: HSM Equation 18-30 through 18-34, Table 18-20
B116: Eliminate Weaving Condition | C116: Multi-Vehicle | D116: Contact MassDOT | E116: Contact MassDOT | F116: All | G116: Weave Present | H116: Freeway Segment | I116: CMF spreadsheet to be provided "Adding or Eliminating Weave". These CMFs provide a rough estimate of expected changes to safety performance with interchange modifications. We recommend using IHSDM or ISATe to perform a more detailed review. Proportionally adjusted from FI and PDO to All | J116: HSM Equation 18-30 through 18-34, Table 18-20
B117: Install Median Cable Barrier | C117: All | D117: 0.99 | E117: 0.9911684958 | F117: All | G117: Traversable Median with No Barrier | H117: Divided Freeway or Expressway | I117: Proportionally adjusted from FI and PDO to All. Proportionally adjusted from the target crash type (cross-median) to all crashes | J117: MassDOT CMF Memo
B118: Install Median Concrete Barrier | C118: All | D118: 0.99 | E118: 0.9877340219 | F118: Rural | G118: Traversable Median with No Barrier | H118: Divided Freeway or Expressway | I118: Proportionally adjusted from FI and PDO to All. Proportionally adjusted from the target crash type (cross-median) to all crashes | J118: http://www.cmfclearinghouse.org/detail.cfm?facid=2256
B119: Install Median Guardrail | C119: All | D119: 0.99 | E119: 0.9904325371 | G119: Traversable Median with No Barrier | H119: Divided Freeway or Expressway | I119: Proportionally adjusted from FI and PDO to All. Proportionally adjusted from the target crash type (cross-median) to all crashes | J119: http://www.cmfclearinghouse.org/detail.cfm?facid=51
B120: Install Rumble Strips on Inside Shoulder | C120: Single-Vehicle | D120: 0.95 | E120: 0.811 | F120: All | G120: Paved Shoulder with No Rumble Strips | H120: Freeway or Expressway Tangent | I120: Proportionally adjusted from FI and PDO to All | J120: Highway Safety Manual Equations 18-36 & 18-37
B121: Install Rumble Strips on Outside Shoulder | C121: Single-Vehicle | D121: 0.95 | E121: 0.811 | F121: All | G121: Paved Shoulder with No Rumble Strips | H121: Freeway or Expressway Tangent | I121: Proportionally adjusted from FI and PDO to All | J121: Highway Safety Manual Equations 18-36 & 18-37
B122: Install Variable Speed Limits | C122: All | D122: 0.71 | E122: 0.71 | F122: Urban | G122: Static Speed Limit | H122: Divided Interstate | I122: Speed Limit > 40 mph; Proportionally adjusted from FI and PDO to All | J122: http://www.cmfclearinghouse.org/detail.cfm?facid=8730
B123: Install/Upgrade Horizontal Curve Signage with Flourescent Sheeting, Warning Signs, and Flashing Beacons | C123: All | D123: 0.606 | E123: 0.606 | G123: No Curve Delineation Treatment | H123: Horizontal Curve on Expressway | I123: Italian Study | J123: http://www.cmfclearinghouse.org/detail.cfm?facid=1851
B124: Introduce Weaving Condition | C124: Multi-Vehicle | D124: Contact MassDOT | E124: Contact MassDOT | F124: All | G124: No Weave Present | H124: Freeway Segment | I124: CMF spreadsheet to be provided "Adding or Eliminating Weave". These CMFs provide a rough estimate of expected changes to safety performance with interchange modifications. We recommend using IHSDM or ISATe to perform a more detailed review. Proportionally adjusted from FI and PDO to All | J124: HSM Equation 18-30 through 18-34, Table 18-20
B125: Widen Average Clear Zone from X Feet to Y Feet | C125: Single-Vehicle | D125: (74548*exp(-0.00451*[X-Y])+195150)/269698 | E125: exp(-0.00451*[X-Y]) | F125: All | G125: Average Clear Zone Width of X Feet | H125: Freeway Segment | I125: Proportionally adjusted from FI and PDO to All | J125: Highway Safety Manual Equation 18-38
B126: Widen Median from X Feet to Y Feet - Multi-Vehicle Crashes | C126: Multi-Vehicle | D126: (74548*exp(-0.00302*[Y-X])+195150*exp(-0.00291*[Y-X]))/269698 | E126: exp(-0.00302*[Y-X]) | F126: All | G126: Median Width of X Feet | H126: Divided Freeway Segment with No Median Barrier | I126: Proportionally adjusted from FI and PDO to All | J126: Highway Safety Manual Table 18-17
B127: Widen Median from X Feet to Y Feet - Single-Vehicle Crashes | C127: Single-Vehicle | D127: (74548*exp(0.00102*[Y-X])+195150*exp(-0.00289*[Y-X]))/269698 | E127: exp(0.00102*[Y-X]) | F127: All | G127: Median Width of X Feet | H127: Divided Freeway Segment with No Median Barrier | I127: Proportionally adjusted from FI and PDO to All | J127: Highway Safety Manual Table 18-17
B128: Widen Paved Inside Shoulder from X Feet to Y Feet | C128: All | D128: (74548*exp(0.0172*[X-Y])+195150*exp(0.0153*[X-Y]))/269698 | E128: exp(0.0172*[X-Y]) | F128: All | G128: Paved Inside Shoulder of X Feet | H128: Freeway Segment | I128: Proportionally adjusted from FI and PDO to All | J128: Highway Safety Manual Equation 18-26, Table 18-16
B129: Widen Paved Outside Shoulder on Curve from X Feet to Y Feet | C129: Single-Vehicle | D129: (74548*exp(0.0897*[X-Y])+195150*exp(0.0840*[X-Y]))/269698 | E129: exp(0.0897*[X-Y]) | F129: All | G129: Paved Outside Shoulder of X Feet | H129: Freeway Horizontal Curve | I129: Proportionally adjusted from FI and PDO to All | J129: Highway Safety Manual Eqaution 18-35, Table 18-21
B130: Widen Paved Outside Shoulder on Tangent from X Feet to Y Feet | C130: Single-Vehicle | D130: (74548*exp(0.0647*[X-Y])+195150)/269698 | E130: exp(0.0647*[X-Y]) | F130: All | G130: Paved Outside Shoulder of X Feet | H130: Freeway Tangent | I130: Proportionally adjusted from FI and PDO to All | J130: Highway Safety Manual Eqaution 18-35, Table 18-21
A131: Non-Freeway Segments | B131: Add Auxiliary Passing Lane | C131: All | D131: 0.63 | E131: 0.58 | F131: Rural | G131: No Passing Lanes Present but Operations Indicate Need | H131: Two-Lane Undivided Highway | I131: Proportionally adjusted from FI and PDO to All | J131: http://www.cmfclearinghouse.org/detail.cfm?facid=4083 | K131: http://www.cmfclearinghouse.org/detail.cfm?facid=4082
B132: Add Breakaway Supports for Utility Poles in Clear Zone | C132: All | D132: 1 | E132: 0.9934672278 | F132: Rural | G132: Utility Poles without Breakaway Supports | H132: Roadway with Utility Poles along Roadside | I132: Proportionally adjusted from FI and PDO to All. Proportionally adjusted from the target crash type (fixed-object crashes) to all crashes. Based on an assumption of an 1 step improvement in roadside hazard rating | J132: http://www.cmfclearinghouse.org/detail.cfm?facid=5187
B133: Add Centerline Rumble Strips | C133: All | D133: 0.97 | E133: 0.957654361 | F133: Rural | G133: No Centerline Rumble Strips | H133: Two Lane Undivided Highway | I133: Proportionally adjusted from FI and PDO to All. Proportionally adjusted from the target crash type (head-on and sideswipe-opposite) to all crashes | J133: http://www.cmfclearinghouse.org/detail.cfm?facid=3360 | K133: http://www.cmfclearinghouse.org/detail.cfm?facid=3355
B134: Add Fluorescent Sheeting to Chevron Signs | C134: All | D134: 0.82 | E134: 0.75 | F134: Rural | G134: No Sign or Sign Without Flourescent Sheeting | H134: Two Lane Undivided Highway | J134: http://www.cmfclearinghouse.org/detail.cfm?facid=2433 | K134: http://www.cmfclearinghouse.org/detail.cfm?facid=2431
B135: Add SafetyEdge | C135: All | D135: 0.97 | E135: 0.9572912415 | F135: Rural | G135: Steep Pavement Edge Dropoff | H135: Two Lane Undivided Highway | I135: Proportionally adjusted from the target crash type (run off road) to all crashes. Proportionally adjusted from FI and PDO to All | J135: http://www.cmfclearinghouse.org/detail.cfm?facid=9661
B136: Add Segment Lighting | C136: All | D136: 0.93 | E136: 0.87649829 | F136: All | G136: No Lighting Present | H136: Urban Street | I136: Proportionally adjusted from the target crash type (nighttime) to all crashes. Proportionally adjusted from FI and PDO to All | J136: http://www.cmfclearinghouse.org/detail.cfm?facid=7774
B137: Add Shoulder Rumble Strips | C137: All | D137: 0.98 | E137: 0.9654262431 | F137: Rural | G137: No Shoulder Rumble Strips Present | H137: Two Lane Undivided Highway | I137: Proportionally adjusted from the target crash type (run off road) to all crashes. Proportionally adjusted from FI and PDO to All | J137: http://www.cmfclearinghouse.org/detail.cfm?facid=3447 | K137: http://www.cmfclearinghouse.org/detail.cfm?facid=3442
B138: Add Thru Lane on Segment - Convert from Rural Two Lane Roadway to Four Lane Divided | C138: All | D138: 0.712 | E138: 0.549 | F138: Rural | G138: Two Lane Undivided Highway with Congestion-Related Safety Issues | H138: Two Lane Undivided Highway Segment | J138: http://www.cmfclearinghouse.org/detail.cfm?facid=7569 | K138: http://www.cmfclearinghouse.org/detail.cfm?facid=7571
B139: Add Thru Lane on Segment - Convert from Urban Two Lane Roadway to Four Lane Divided | C139: All | D139: 0.341 | E139: 0.367 | F139: Urban | G139: Two Lane Undivided Highway with Congestion-Related Safety Issues | H139: Two Lane Undivided Highway Segment | J139: http://www.cmfclearinghouse.org/detail.cfm?facid=7568 | K139: http://www.cmfclearinghouse.org/detail.cfm?facid=7566
B140: Add TWLTL - 2U to 3T | C140: All | D140: 0.797 | E140: 0.739 | F140: All | G140: No Two Way Left Turn Lane | H140: Two Lane Undivided Highway | J140: http://www.cmfclearinghouse.org/detail.cfm?facid=2341 | K140: http://www.cmfclearinghouse.org/detail.cfm?facid=2346
B141: Add TWLTL - 4U to 5T | C141: All | D141: 0.564 | E141: 0.564 | F141: Urban and Suburban | G141: 4-Lane Undivided Street | H141: Urban or Suburban Arterial | I141: This CMF applies in areas with a population between 5,000 and 25,000 people. | J141: http://www.cmfclearinghouse.org/detail.cfm?facid=9418
B142: Add Wet-Reflective Pavement Markings | C142: All | D142: 0.825 | E142: 0.595 | G142: Standard Pavement Markings | H142: Multilane Highway | J142: http://www.cmfclearinghouse.org/detail.cfm?facid=8110 | K142: http://www.cmfclearinghouse.org/detail.cfm?facid=8109
B143: Change Roadside Hazard Rating from X to Y by Flattening Roadside Slope | C143: All | D143: exp(0.0668*(Y-X)) | E143: exp(0.0668*(Y-X)) | F143: Rural | G143: Roadside Slope Associated with Roadside Hazard Rating of X | H143: Two Lane Rural Road | J143: http://www.cmfclearinghouse.org/detail.cfm?facid=5187 | K143: https://www.fhwa.dot.gov/publications/research/safety/99207/appd.cfm
B144: Change Roadside Hazard Rating from X to Y by Widening Clear Zone | C144: All | D144: exp(0.0668*(Y-X)) | E144: exp(0.0668*(Y-X)) | F144: Rural | G144: Roadside Clear Zone Associated with Roadside Hazard Rating of X | H144: Two Lane Rural Road | J144: http://www.cmfclearinghouse.org/detail.cfm?facid=5187 | K144: https://www.fhwa.dot.gov/publications/research/safety/99207/appd.cfm
B145: Convert Angle Parking to Parallel Parking | C145: All | D145: 0.91 | E145: 0.9563129301 | F145: Urban | G145: Angle Parking | H145: Local Roadways | I145: Proportionally adjusted from the target crash type (parking-related) to all crashes. Proportionally adjusted from FI and PDO to All | J145: http://www.cmfclearinghouse.org/detail.cfm?facid=164
B146: Convert Edgeline Markings from 4" to 6" | C146: All | D146: 0.825 | E146: 0.635 | F146: Rural | G146: 4-inch edgelines | H146: Two Lane Undivided Highway | I146: Crash type also excludes intersection/interchange crashes and winter month crashes | J146: https://www.cmfclearinghouse.org/detail.cfm?facid=4736 | K146: http://www.cmfclearinghouse.org/detail.cfm?facid=4737
B147: Decrease Lane Width on Urban Street | C147: All | D147: Check CMF Clearinghouse for Relevant Lane Width Change: http://www.cmfclearinghouse.org/study_detail.cfm?stid=439 | E147: Check CMF Clearinghouse for Relevant Lane Width Change: http://www.cmfclearinghouse.org/study_detail.cfm?stid=439 | F147: Urban | G147: Lane width of 10, 11, or 12 feet | H147: Urban Street | I147: Average for 1' and 2' lane width reductions, average AADT from study | J147: http://www.cmfclearinghouse.org/study_detail.cfm?stid=439
B148: Flatten Crest Vertical Curve | C148: All | D148: 0.82 | E148: 0.76 | F148: Rural | G148: Crest Vertical Curve without Sufficient Sight Distance | H148: Crest Vertical Curve on Two Lane Undivided Highway | I148: Speed Limit 25-65 mph | J148: http://www.cmfclearinghouse.org/detail.cfm?facid=6869 | K148: http://www.cmfclearinghouse.org/detail.cfm?facid=6868
B149: Flatten Horizontal Curve | C149: All | D149: 0.315 | E149: 0.259 | F149: Rural | G149: Horizontal Curve with Sharp Horizontal Curve | H149: Two Lane Rural Road | I149: Minimum of 400 to Maximum of 12000 Annual Average Daily Traffic (AADT) | J149: http://www.cmfclearinghouse.org/detail.cfm?facid=9651 | K149: http://www.cmfclearinghouse.org/detail.cfm?facid=9525
B150: High Friction Surface Treatment on Horizontal Curve | C150: All | D150: 0.529 | E150: 0.49 | G150: Perceived Friction-Related Crash problem | H150: Horizontal Curve | J150: http://www.cmfclearinghouse.org/detail.cfm?facid=10319 | K150: http://www.cmfclearinghouse.org/detail.cfm?facid=10318
B151: Horizontal Curve Warning Signs and Flashers | C151: All | D151: 0.42 | E151: 0.42 | F151: Rural | G151: Horizontal Curve with Speed-Related Crash Issues | H151: Rural Highway | J151: https://www.fhwa.dot.gov/hfl/partnerships/tapco/final_report.pdf
B152: Implement Traffic Calming Measure(s) | C152: All | D152: 0.68 | E152: 0.67 | F152: Urban | G152: No Traffic Calming Measure Present | H152: Minor Collector | I152: Generic traffic calming CMF | J152: http://www.cmfclearinghouse.org/detail.cfm?facid=128 | K152: http://www.cmfclearinghouse.org/detail.cfm?facid=129
B153: Improve Roadside by Reducing Roadside Hazard Rating from X to Y | C153: All | D153: exp(0.0668*(Y-X)) | E153: exp(0.0668*(Y-X)) | F153: Rural | G153: Roadside Hazard Rating of X | H153: Two Lane Undivided Highway | J153: http://www.cmfclearinghouse.org/detail.cfm?facid=5187 | K153: https://www.fhwa.dot.gov/publications/research/safety/99207/appd.cfm
B154: Improve STOP Sign Retroreflectivity at Stop-Controlled Intersection | C154: All | D154: 0.946 | E154: 0.906 | F154: All | G154: STOP Sign with Low Retroreflectivity | H154: Stop-Controlled Intersection | J154: http://www.cmfclearinghouse.org/detail.cfm?facid=6052 | K154: http://www.cmfclearinghouse.org/detail.cfm?facid=6053
B155: Increase Pavement Marking Retroreflectivity | C155: All | D155: 0.95 | E155: 0.950599316 | F155: Rural | G155: Longtiudinal Pavement Markings with Low Retroreflectivity | H155: Two-lane rural highway | I155: Proportionally adjusted from the target crash type (nighttime) to all crashes. Proportionally adjusted from FI and PDO to All | J155: http://www.cmfclearinghouse.org/detail.cfm?facid=6842
B156: Install Dynamic Speed Feedback Sign | C156: All | D156: 0.95 | E156: 0.95 | F156: Rural | G156: Horziontal Curve with Speeding Problem | H156: Horizontal Curve on Two Lane Highway with a Posted Speed Limit Greater than 45 MPH | I156: Speed Limit 50-65 mph | J156: http://www.cmfclearinghouse.org/detail.cfm?facid=6885
B157: Install Light-Reflecting Devices to Scare Away Animals | C157: All | D157: 1 | E157: 0.9999783958 | G157: No Light-Reflecting Devices | H157: Roadway Segment with a History of Animal Crashes | I157: Proportionally adjusted from the target crash type (vehicle-animal) to all crashes | J157: http://www.cmfclearinghouse.org/detail.cfm?facid=9149
B158: Install Roadside Barrier | C158: All | D158: 0.97 | E158: 0.9105149822 | G158: Unprotected Roadside Embankment | H158: Fill Segment | I158: Proportionally adjusted from the target crash type (run off road) to all crashes. Proportionally adjusted from FI and PDO to All. Proportionally adjusted from K and ABC to FI. | J158: http://www.cmfclearinghouse.org/detail.cfm?facid=37 | K158: http://www.cmfclearinghouse.org/detail.cfm?facid=38 | L158: http://www.cmfclearinghouse.org/detail.cfm?facid=39
B159: Install Speed Cameras | C159: All | D159: 0.46 | E159: 0.52 | F159: Urban | G159: No Speed Cameras Present | H159: Principal Arterial - Other | J159: http://www.cmfclearinghouse.org/detail.cfm?facid=2915 | K159: http://www.cmfclearinghouse.org/detail.cfm?facid=2921
B160: Prohibit On-Street Parking | C160: All | D160: 0.75 | E160: 0.8 | F160: Urban | G160: Parking Permitted on Street | H160: Minor Arterial | I160: Proportionally adjusted from FI and PDO to All | J160: http://www.cmfclearinghouse.org/detail.cfm?facid=153 | K160: http://www.cmfclearinghouse.org/detail.cfm?facid=154
B161: Reduce Access Point Density from X Driveways per Mile to Y Driveways per Mile | C161: All | D161: exp(0.0232*[Y-X]) | E161: exp(0.0152*[Y-X]) | F161: Rural | G161: Driveway Density of X Driveways per Mile | H161: Two Lane Undivided Highway | J161: http://www.cmfclearinghouse.org/detail.cfm?facid=1973 | K161: http://www.cmfclearinghouse.org/detail.cfm?facid=2248
B162: Reduce Superelevation Deficiency on Horizontal Curve from X to Y, Superelevation Deficiency Between 0.01 and 0.02 Feet per Foot | C162: All | D162: (1+6*(Y-0.01))/(1+6*(X-0.01)) | E162: (1+6*(Y-0.01))/(1+6*(X-0.01)) | F162: Rural | G162: Superelevation Deficiency of X Feet per Foot, X is Between 0.01 and 0.02 | H162: Horizontal Curve on Two Lane Undivided Highway | J162: http://www.cmfclearinghouse.org/detail.cfm?facid=5183
B163: Reduce Superelevation Deficiency on Horizontal Curve from X to Y, Superelevation Deficiency Greater than 0.02 Feet per Foot | C163: All | D163: (1+3*(Y-0.02))/(1+3*(X-0.02)) | E163: (1+3*(Y-0.02))/(1+3*(X-0.02)) | F163: Rural | G163: Superelevation Deficiency of X Feet per Foot, X is Greater than 0.02 | H163: Horizontal Curve on Two Lane Undivided Highway | J163: http://www.cmfclearinghouse.org/detail.cfm?facid=5184
B164: Resurface Rural Roadway | C164: All | D164: 1.03 | E164: 0.74 | F164: Rural | G164: Poor Pavement Condition | H164: Two Lane Undivided Highway | I164: Minimum of 410 to Maximum of 26943 Annual Average Daily Traffic (AADT) | J164: http://www.cmfclearinghouse.org/detail.cfm?facid=5629 | K164: http://www.cmfclearinghouse.org/detail.cfm?facid=5626
B165: Resurface Urban Street | C165: All | D165: 0.929 | E165: 0.787 | F165: Urban | G165: Old Pavement | H165: Urban Street, Signalized Intersection | J165: http://www.cmfclearinghouse.org/detail.cfm?facid=10280 | K165: http://www.cmfclearinghouse.org/detail.cfm?facid=9289
B166: Road Diet - 4U to 3T | C166: All | D166: 0.71 | E166: 0.71 | F166: Urban | G166: Four Lane Undivided Roadway | H166: Four Lane Undivided Minor Arterial | J166: http://www.cmfclearinghouse.org/detail.cfm?facid=199
B167: Widen Average Lane Width for Rural Roadway by 1 Foot | C167: All | D167: 0.93 | E167: 0.93 | F167: Rural | G167: Rural Roadway with Narrow Lanes | H167: Rural Highway | I167: Averaged 1' Lane Width Widening and Used HSM Adjustment Factor | J167: Highway Safety Manual Table 10-8 and Equation 10-11
B168: Widen Average Lane Width for Urban Street by 1 Foot | C168: All | D168: 0.84 | E168: 0.9 | F168: Urban | G168: Urban Street with Narrow Lanes | H168: Urban Street | I168: Average of 1' increases from 10 to 11 and 11 to 12 | J168: http://www.cmfclearinghouse.org/study_detail.cfm?stid=439
B169: Widen Paved Shoulder on Rural Roadway | C169: All | D169: 0.93 | E169: 0.93 | F169: Rural | G169: Narrow Shoulder | H169: Rural Highway | J169: Highway Safety Manual Table 10-9

Sheet Input
A1: Required Manual Input | C1: Optional Manual Input | E1: Select from Drop-Down List
C2: Method 3 | D2: Method 3
A3: General Information
A4: General Information | E4: Location Information
A5: Analyst | E5: City
A6: Agency or Company | E6: Intersection
A7: Date Performed | E7: Jurisdiction
A8: Study Period (Years, 5 minimum - 10 maximum): | C8: 1 | E8: Analysis Year
A10: Intersection Data
A11: Intersection Type: | C11: 3ST HSM
A12: Intersection Lighting (Present/Not Present): | C12: Not Present
A15: Stop Controlled - This information not needed for Method 3
A16: Number of major-road approaches with left-turn lanes (0,1,2)
A17: Number of major-road approaches with right-turn lanes (0,1,2)
A19: Signal Controlled - This information not needed for Method 3
A20: Number of approaches with left-turn lanes (0,1,2,3,4) [for 3SG, use maximum value of 3]
A21: Number of approaches with right-turn lanes (0,1,2,3,4) [for 3SG, use maximum value of 3]
A22: Number of approaches with left-turn signal phasing [for 3SG, use maximum value of 3]
A23: Type of left-turn signal phasing for Leg #1
A24: Type of left-turn signal phasing for Leg #2
A25: Type of left-turn signal phasing for Leg #3
A26: Type of left-turn signal phasing for Leg #4
A27: Number of approaches with right-turn-on-red prohibited [for 3SG, use maximum value of 3]
A28: Intersection red light cameras (present/not present)
A29: Sum of all pedestrian crossing volumes (PedVol) -- Signalized intersections only
A30: Maximum number of lanes crossed by a pedestrian (nlanesx)
A31: Number of bus stops within 300 m (1,000 ft) of the intersection
A32: Schools within 300 m (1,000 ft) of the intersection (present/not present)
A33: Number of alcohol sales establishments within 300 m (1,000 ft) of the intersection
A35: Step 1 – Expected Change in Safety Performance
D36: Years
A37: Step 1.3A - Observed Crash Data for Intersection | D37: 20XX | E37: 20XX | F37: 20XX | G37: 20XX | H37: 20XX | I37: 20XX | J37: 20XX | K37: 20XX | L37: 20XX | M37: 20XX
A38: Crash Type, Severity | B38: Total | C38: Average per Year | D38: Year 1 | E38: Year 2 | F38: Year 3 | G38: Year 4 | H38: Year 5 | I38: Year 6 | J38: Year 7 | K38: Year 8 | L38: Year 9 | M38: Year 10
A39: MV, FI | B39: =IF(COUNTA(D39:INDIRECT(ADDRESS(39,3+$C$8)))<>$C$8,"INVALID",SUM(D39:INDIRECT(ADDRESS(39,3+$C$8)))) -> INVALID | C39: =IF(COUNTA(D39:INDIRECT(ADDRESS(39,3+$C$8)))<>$C$8,"ENSURE TABLE ROW IS COMPLETELY FILLED OUT",AVERAGE(D39:INDIRECT(ADDRESS(39,3+$C$8)))) -> ENSURE TABLE ROW IS COMPLETELY FILLED OUT
A40: MV, PDO | B40: =IF(COUNTA(D40:INDIRECT(ADDRESS(40,3+$C$8)))<>$C$8,"INVALID",SUM(D40:INDIRECT(ADDRESS(40,3+$C$8)))) -> INVALID | C40: =IF(COUNTA(D40:INDIRECT(ADDRESS(40,3+$C$8)))<>$C$8,"ENSURE TABLE ROW IS COMPLETELY FILLED OUT",AVERAGE(D40:INDIRECT(ADDRESS(40,3+$C$8)))) -> ENSURE TABLE ROW IS COMPLETELY FILLED OUT
A41: SV, FI | B41: =IF(COUNTA(D41:INDIRECT(ADDRESS(41,3+$C$8)))<>$C$8,"INVALID",SUM(D41:INDIRECT(ADDRESS(41,3+$C$8)))) -> INVALID | C41: =IF(COUNTA(D41:INDIRECT(ADDRESS(41,3+$C$8)))<>$C$8,"ENSURE TABLE ROW IS COMPLETELY FILLED OUT",AVERAGE(D41:INDIRECT(ADDRESS(41,3+$C$8)))) -> ENSURE TABLE ROW IS COMPLETELY FILLED OUT
A42: SV, PDO | B42: =IF(COUNTA(D42:INDIRECT(ADDRESS(42,3+$C$8)))<>$C$8,"INVALID",SUM(D42:INDIRECT(ADDRESS(42,3+$C$8)))) -> INVALID | C42: =IF(COUNTA(D42:INDIRECT(ADDRESS(42,3+$C$8)))<>$C$8,"ENSURE TABLE ROW IS COMPLETELY FILLED OUT",AVERAGE(D42:INDIRECT(ADDRESS(42,3+$C$8)))) -> ENSURE TABLE ROW IS COMPLETELY FILLED OUT
A43: Ped, FI | B43: =IF(COUNTA(D43:INDIRECT(ADDRESS(43,3+$C$8)))<>$C$8,"INVALID",SUM(D43:INDIRECT(ADDRESS(43,3+$C$8)))) -> INVALID | C43: =IF(COUNTA(D43:INDIRECT(ADDRESS(43,3+$C$8)))<>$C$8,"ENSURE TABLE ROW IS COMPLETELY FILLED OUT",AVERAGE(D43:INDIRECT(ADDRESS(43,3+$C$8)))) -> ENSURE TABLE ROW IS COMPLETELY FILLED OUT
A44: Ped, PDO | B44: =IF(COUNTA(D44:INDIRECT(ADDRESS(44,3+$C$8)))<>$C$8,"INVALID",SUM(D44:INDIRECT(ADDRESS(44,3+$C$8)))) -> INVALID | C44: =IF(COUNTA(D44:INDIRECT(ADDRESS(44,3+$C$8)))<>$C$8,"ENSURE TABLE ROW IS COMPLETELY FILLED OUT",AVERAGE(D44:INDIRECT(ADDRESS(44,3+$C$8)))) -> ENSURE TABLE ROW IS COMPLETELY FILLED OUT
A45: Bike, FI | B45: =IF(COUNTA(D45:INDIRECT(ADDRESS(45,3+$C$8)))<>$C$8,"INVALID",SUM(D45:INDIRECT(ADDRESS(45,3+$C$8)))) -> INVALID | C45: =IF(COUNTA(D45:INDIRECT(ADDRESS(45,3+$C$8)))<>$C$8,"ENSURE TABLE ROW IS COMPLETELY FILLED OUT",AVERAGE(D45:INDIRECT(ADDRESS(45,3+$C$8)))) -> ENSURE TABLE ROW IS COMPLETELY FILLED OUT
A46: Bike, PDO | B46: =IF(COUNTA(D46:INDIRECT(ADDRESS(46,3+$C$8)))<>$C$8,"INVALID",SUM(D46:INDIRECT(ADDRESS(46,3+$C$8)))) -> INVALID | C46: =IF(COUNTA(D46:INDIRECT(ADDRESS(46,3+$C$8)))<>$C$8,"ENSURE TABLE ROW IS COMPLETELY FILLED OUT",AVERAGE(D46:INDIRECT(ADDRESS(46,3+$C$8)))) -> ENSURE TABLE ROW IS COMPLETELY FILLED OUT
D47: =IF(COUNTA(Table17[Year 1])=0,"",IF(COUNTA(Table17[Year 1])=8,"","ENSURE TABLE COLUMN IS COMPLETELY FILLED OUT")) ->  | E47: =IF(COUNTA(Table17[Year 2])=0,"",IF(COUNTA(Table17[Year 2])=8,"","ENSURE TABLE COLUMN IS COMPLETELY FILLED OUT")) ->  | F47: =IF(COUNTA(Table17[Year 3])=0,"",IF(COUNTA(Table17[Year 3])=8,"","ENSURE TABLE COLUMN IS COMPLETELY FILLED OUT")) ->  | G47: =IF(COUNTA(Table17[Year 4])=0,"",IF(COUNTA(Table17[Year 4])=8,"","ENSURE TABLE COLUMN IS COMPLETELY FILLED OUT")) ->  | H47: =IF(COUNTA(Table17[Year 5])=0,"",IF(COUNTA(Table17[Year 5])=8,"","ENSURE TABLE COLUMN IS COMPLETELY FILLED OUT")) ->  | I47: =IF(COUNTA(Table17[Year 6])=0,"",IF(COUNTA(Table17[Year 6])=8,"","ENSURE TABLE COLUMN IS COMPLETELY FILLED OUT")) ->  | J47: =IF(COUNTA(Table17[Year 7])=0,"",IF(COUNTA(Table17[Year 7])=8,"","ENSURE TABLE COLUMN IS COMPLETELY FILLED OUT")) ->  | K47: =IF(COUNTA(Table17[Year 8])=0,"",IF(COUNTA(Table17[Year 8])=8,"","ENSURE TABLE COLUMN IS COMPLETELY FILLED OUT")) ->  | L47: =IF(COUNTA(Table17[Year 9])=0,"",IF(COUNTA(Table17[Year 9])=8,"","ENSURE TABLE COLUMN IS COMPLETELY FILLED OUT")) ->  | M47: =IF(COUNTA(Table17[Year 10])=0,"",IF(COUNTA(Table17[Year 10])=8,"","ENSURE TABLE COLUMN IS COMPLETELY FILLED OUT")) -> 
A49: Step 1.3B - Traffic Data
A50: Average AADT (entering the intersection or on the segment) for the Study Period(Major):
A52: Average AADT (entering the intersection or on the segment) for the Study Period(Minor):
A54: Average AADT for the Study Period(Total): | D54: =IF(AND(D50<>"",D52<>""),D50+D52,"Please Input Both AADT's") -> Please Input Both AADT's
A55: Design Year AADT (Total):
D56: =IF(OR(D52="",D55="",D50=""),"Please Enter All AADT's","") -> Please Enter All AADT's
A59: Step 2 – Expected Change in Safety Performance
A60: Facility Type: | B60: =INDEX(Table58[],MATCH(C60,Table58[Facility Type],0),2) -> 0 | C60: Please Select Facility Type
A61: Discount Rate (i) | B61: 0.07 | C61: Number of Proposed Alternatives: | D61: 0 | E61: =IF(OR(D61="",D61=0),"To Unlock Tables Below Please Select The Number of Proposed Alternatives","") -> To Unlock Tables Below Please Select The Number of Proposed Alternatives
B65: Alternative 1 | C65: Alternative 2 | D65: Alternative 3 | E65: Alternative 4
A66: Name of Countermeasure 1
A67: Name of Countermeasure 2 (If Desired)
A68: Estimated Service Life (Years)
A69: Estimated Improvement Cost
A72: CMF Input - Use CMFs Tab to Calculate - If no CMF Adjustment being made leave the default value of 1.000; PDO CMF Not required - PDO crash reductions calculated by subtracting FI crashes from ALL crashes
A73: Alternative 1 | B73: CMF Combination Method (If Applicable): | C73: Countermeasure 1: | E73: Countermeasure 2 (Select CMF Combination Method to Unlock):
A74: Name | C74: =IF(B66="","",B66) ->  | E74: =IF(B67="","",B67) -> 
A75: Crash Type, Severity | C75: CMF | E75: CMF
A76: MV, ALL | B76: Not Applicable | C76: 1 | E76: 1 | G76: =IF(AND(B76="Multiplicative",C76<=1,E76<=1),"ERROR - At Least 1 Value Must Be >1.0",IF(AND(B76<>"Not Applicable",B76<>"Multiplicative"),IF(OR(C76>1,E76>1),"If a CMF is > 1, must select Multiplicative",""),IF(AND(B76="Not Applicable",E76<>1),"Please clear value from countermeasure 2 CMF",""))) -> 
A77: MV, FI | B77: Not Applicable | C77: 1 | E77: 1 | G77: =IF(AND(B77="Multiplicative",C77<=1,E77<=1),"ERROR - At Least 1 Value Must Be >1.0",IF(AND(B77<>"Not Applicable",B77<>"Multiplicative"),IF(OR(C77>1,E77>1),"If a CMF is > 1, must select Multiplicative",""),IF(AND(B77="Not Applicable",E77<>1),"Please clear value from countermeasure 2 CMF",""))) -> 
A78: SV, ALL | B78: Not Applicable | C78: 1 | E78: 1
A79: SV, FI | B79: Not Applicable | C79: 1 | E79: 1 | G79: =IF(AND(B79="Multiplicative",C79<=1,E79<=1),"ERROR - At Least 1 Value Must Be >1.0",IF(AND(B79<>"Not Applicable",B79<>"Multiplicative"),IF(OR(C79>1,E79>1),"If a CMF is > 1, must select Multiplicative",""),IF(AND(B79="Not Applicable",E79<>1),"Please clear value from countermeasure 2 CMF",""))) -> 
A80: Ped, ALL | B80: Not Applicable | C80: 1 | E80: 1
A81: Ped, FI | B81: Not Applicable | C81: 1 | E81: 1 | G81: =IF(AND(B81="Multiplicative",C81<=1,E81<=1),"ERROR - At Least 1 Value Must Be >1.0",IF(AND(B81<>"Not Applicable",B81<>"Multiplicative"),IF(OR(C81>1,E81>1),"If a CMF is > 1, must select Multiplicative",""),IF(AND(B81="Not Applicable",E81<>1),"Please clear value from countermeasure 2 CMF",""))) -> 
A82: Bike, ALL | B82: Not Applicable | C82: 1 | E82: 1
A83: Bike, FI | B83: Not Applicable | C83: 1 | E83: 1 | G83: =IF(AND(B83="Multiplicative",C83<=1,E83<=1),"ERROR - At Least 1 Value Must Be >1.0",IF(AND(B83<>"Not Applicable",B83<>"Multiplicative"),IF(OR(C83>1,E83>1),"If a CMF is > 1, must select Multiplicative",""),IF(AND(B83="Not Applicable",E83<>1),"Please clear value from countermeasure 2 CMF",""))) -> 
A85: Alternative 2 | B85: CMF Combination Method (If Applicable): | C85: Countermeasure 1: | E85: Countermeasure 2 (Select CMF Combination Method to Unlock):
A86: Name | C86: =IF(C66="","",C66) ->  | E86: =IF(C67="","",C67) -> 
A87: Crash Type, Severity | C87: CMF | E87: CMF
A88: MV, ALL | B88: Not Applicable | C88: 1 | E88: 1 | G88: =IF(AND(B88="Multiplicative",C88<=1,E88<=1),"ERROR - At Least 1 Value Must Be >1.0",IF(AND(B88<>"Not Applicable",B88<>"Multiplicative"),IF(OR(C88>1,E88>1),"If a CMF is > 1, must select Multiplicative",""),IF(AND(B88="Not Applicable",E88<>1),"Please clear value from countermeasure 2 CMF",""))) -> 
A89: MV, FI | B89: Not Applicable | C89: 1 | E89: 1 | G89: =IF(AND(B89="Multiplicative",C89<=1,E89<=1),"ERROR - At Least 1 Value Must Be >1.0",IF(AND(B89<>"Not Applicable",B89<>"Multiplicative"),IF(OR(C89>1,E89>1),"If a CMF is > 1, must select Multiplicative",""),IF(AND(B89="Not Applicable",E89<>1),"Please clear value from countermeasure 2 CMF",""))) -> 
A90: SV, ALL | B90: Not Applicable | C90: 1 | E90: 1
A91: SV, FI | B91: Not Applicable | C91: 1 | E91: 1
A92: Ped, ALL | B92: Not Applicable | C92: 1 | E92: 1
A93: Ped, FI | B93: Not Applicable | C93: 1 | E93: 1
A94: Bike, ALL | B94: Not Applicable | C94: 1 | E94: 1
A95: Bike, FI | B95: Not Applicable | C95: 1 | E95: 1
A97: Alternative 3 | B97: CMF Combination Method (If Applicable): | C97: Countermeasure 1: | E97: Countermeasure 2 (Select CMF Combination Method to Unlock):
A98: Name | C98: =IF(D66="","",D66) ->  | E98: =IF(D67="","",D67) -> 
A99: Crash Type, Severity | C99: CMF | E99: CMF
A100: MV, ALL | B100: Not Applicable | C100: 1 | E100: 1 | G100: =IF(AND(B100="Multiplicative",C100<=1,E100<=1),"ERROR - At Least 1 Value Must Be >1.0",IF(AND(B100<>"Not Applicable",B100<>"Multiplicative"),IF(OR(C100>1,E100>1),"If a CMF is > 1, must select Multiplicative",""),IF(AND(B100="Not Applicable",E100<>1),"Please clear value from countermeasure 2 CMF",""))) -> 
A101: MV, FI | B101: Not Applicable | C101: 1 | E101: 1 | G101: =IF(AND(B101="Multiplicative",C101<=1,E101<=1),"ERROR - At Least 1 Value Must Be >1.0",IF(AND(B101<>"Not Applicable",B101<>"Multiplicative"),IF(OR(C101>1,E101>1),"If a CMF is > 1, must select Multiplicative",""),IF(AND(B101="Not Applicable",E101<>1),"Please clear value from countermeasure 2 CMF",""))) -> 
A102: SV, ALL | B102: Not Applicable | C102: 1 | E102: 1
A103: SV, FI | B103: Not Applicable | C103: 1 | E103: 1
A104: Ped, ALL | B104: Not Applicable | C104: 1 | E104: 1
A105: Ped, FI | B105: Not Applicable | C105: 1 | E105: 1
A106: Bike, ALL | B106: Not Applicable | C106: 1 | E106: 1
A107: Bike, FI | B107: Not Applicable | C107: 1 | E107: 1
G108: =IF(AND(B108="Multiplicative",C108<=1,E108<=1),"ERROR - At Least 1 Value Must Be >1.0",IF(AND(B108<>"Not Applicable",B108<>"Multiplicative"),IF(OR(C108>1,E108>1),"If a CMF is > 1, must select Multiplicative",""),IF(AND(B108="Not Applicable",E108<>""),"Please clear value from countermeasure 2 CMF",""))) -> 
A109: Alternative 4 | B109: CMF Combination Method (If Applicable): | C109: Countermeasure 1: | E109: Countermeasure 2 (Select CMF Combination Method to Unlock):
A110: Name | C110: =IF(E66="","",E66) ->  | E110: =IF(E67="","",E67) -> 
A111: Crash Type, Severity | C111: CMF | E111: CMF
A112: MV, ALL | B112: Not Applicable | C112: 1 | E112: 1 | G112: =IF(AND(B112="Multiplicative",C112<=1,E112<=1),"ERROR - At Least 1 Value Must Be >1.0",IF(AND(B112<>"Not Applicable",B112<>"Multiplicative"),IF(OR(C112>1,E112>1),"If a CMF is > 1, must select Multiplicative",""),IF(AND(B112="Not Applicable",E112<>1),"Please clear value from countermeasure 2 CMF",""))) -> 
A113: MV, FI | B113: Not Applicable | C113: 1 | E113: 1 | G113: =IF(AND(B113="Multiplicative",C113<=1,E113<=1),"ERROR - At Least 1 Value Must Be >1.0",IF(AND(B113<>"Not Applicable",B113<>"Multiplicative"),IF(OR(C113>1,E113>1),"If a CMF is > 1, must select Multiplicative",""),IF(AND(B113="Not Applicable",E113<>1),"Please clear value from countermeasure 2 CMF",""))) -> 
A114: SV, ALL | B114: Not Applicable | C114: 1 | E114: 1
A115: SV, FI | B115: Not Applicable | C115: 1 | E115: 1
A116: Ped, ALL | B116: Not Applicable | C116: 1 | E116: 1
A117: Ped, FI | B117: Not Applicable | C117: 1 | E117: 1
A118: Bike, ALL | B118: Not Applicable | C118: 1 | E118: 1
A119: Bike, PDO | B119: Not Applicable | C119: 1 | E119: 1

Sheet Input Summary (hidden)
A1: Required Automated Input For Each Year | C1: Single Automated Data Pull
A2: NOTE: This sheet can't be used to calculate when converting to a different intersection type
A3: General Information and Input Data for Urban and Suburban Arterial Intersections
A4: General Information | C4: Location Information
A5: Analyst | B5: =Input!C5 -> 0 | C5: City | D5: =Input!F5 -> 0
A6: Agency or Company | B6: =Input!C6 -> 0 | C6: Intersection | D6: =Input!F6 -> 0
A7: Date Performed | B7: =Input!C7 -> 00:00:00 | C7: Jurisdiction | D7: =Input!F7 -> 0
C8: Analysis Year | D8: =Input!F8 -> 0
A9: Facility Type: | B9: =Input!C60 -> Please Select Facility Type | C9: Discount Rate (i) | E9: =Input!B61 -> 0.07
A10: Sheet to Pull Data From: | B10: =Input!C11 -> 3ST HSM | C10: Intersection Type: | E10: =LEFT(B10,3) -> 3ST
A11: Number of Proposed Alternatives: | B11: =Input!D61 -> 0 | C11: Study Period: | E11: =Input!C8 -> 1
A12: Present Data:
A13: Present AADT(Major):
A14: Present AADT(Minor):
A15: Intersection Lighting (Present/Not Present): | E15: =Input!C12 -> Not Present
A17: Stop Controlled
A18: Present Data:
A19: Number of major-road approaches with left-turn lanes (0,1,2) | E19: =Input!G16 -> 0
A20: Number of major-road approaches with right-turn lanes (0,1,2) | E20: =Input!G17 -> 0
A22: Signal Controlled
A23: Present Data:
A24: Number of approaches with left-turn lanes (0,1,2,3,4) [for 3SG, use maximum value of 3] | E24: =Input!G20 -> 0
A25: Number of approaches with right-turn lanes (0,1,2,3,4) [for 3SG, use maximum value of 3] | E25: =Input!G21 -> 0
A26: Number of approaches with left-turn signal phasing [for 3SG, use maximum value of 3] | E26: =Input!G22 -> 0
A27: Type of left-turn signal phasing for Leg #1 | E27: =Input!G23 -> 0
A28: Type of left-turn signal phasing for Leg #2 | E28: =Input!G24 -> 0
A29: Type of left-turn signal phasing for Leg #3 | E29: =Input!G25 -> 0
A30: Type of left-turn signal phasing for Leg #4 (if applicable) | E30: =Input!G26 -> 0
A31: Number of approaches with right-turn-on-red prohibited [for 3SG, use maximum value of 3] | E31: =Input!G27 -> 0
A32: Intersection red light cameras (present/not present) | E32: =Input!G28 -> 0
A33: Sum of all pedestrian crossing volumes (PedVol) -- Signalized intersections only | E33: =Input!G29 -> 0
A34: Maximum number of lanes crossed by a pedestrian (nlanesx) | E34: =Input!G30 -> 0
A35: Number of bus stops within 300 m (1,000 ft) of the intersection | E35: =Input!G31 -> 0
A36: Schools within 300 m (1,000 ft) of the intersection (present/not present) | E36: =Input!G32 -> 0
A37: Number of alcohol sales establishments within 300 m (1,000 ft) of the intersection | E37: =Input!G33 -> 0

Sheet Output
A1: Results | B1: Ensure that program at end of Input was run. If any Input values are modified, the program must be run again. If cells display #REF, press the F9 key.
A2: Step 1.3C - Calculate Estimated Number of Crashes for the Design Year
A3: Crash Type, Severity | B3: Total Observed Crashes During Study Period | C3: AADTstudy | D3: YYears,study | E3: AADTDesign | F3: Estimated Crashes During the Design Year using Method 3, No-Build
A4: MV, FI | B4: =Input!B39 -> INVALID | C4: =Input!$D$54 -> Please Input Both AADT's | D4: =Input!$C$8 -> 1 | E4: =Input!$D$55 -> 0 | F4: =B4/(C4*D4)*E4 -> 
A5: MV, PDO | B5: =Input!B40 -> INVALID | C5: =Input!$D$54 -> Please Input Both AADT's | D5: =Input!$C$8 -> 1 | E5: =Input!$D$55 -> 0 | F5: =B5/(C5*D5)*E5 -> 
A6: SV, FI | B6: =Input!B41 -> INVALID | C6: =Input!$D$54 -> Please Input Both AADT's | D6: =Input!$C$8 -> 1 | E6: =Input!$D$55 -> 0
A7: SV, PDO | B7: =Input!B42 -> INVALID | C7: =Input!$D$54 -> Please Input Both AADT's | D7: =Input!$C$8 -> 1 | E7: =Input!$D$55 -> 0 | F7: =B7/(C7*D7)*E7 -> 
A8: Ped, FI | B8: =Input!B43 -> INVALID | C8: =Input!$D$54 -> Please Input Both AADT's | D8: =Input!$C$8 -> 1 | E8: =Input!$D$55 -> 0
A9: Ped, PDO | B9: =Input!B44 -> INVALID | C9: =Input!$D$54 -> Please Input Both AADT's | D9: =Input!$C$8 -> 1 | E9: =Input!$D$55 -> 0
A10: Bike, FI | B10: =Input!B45 -> INVALID | C10: =Input!$D$54 -> Please Input Both AADT's | D10: =Input!$C$8 -> 1 | E10: =Input!$D$55 -> 0
A11: Bike, PDO | B11: =Input!B46 -> INVALID | C11: =Input!$D$54 -> Please Input Both AADT's | D11: =Input!$C$8 -> 1 | E11: =Input!$D$55 -> 0
A12: Total (FI) | B12: =SUM(B4,B6,B8,B10) -> 0 | C12: - | D12: - | E12: - | F12: =SUM(F4,F6,F8,F10) -> 
A13: Total (PDO) | B13: =SUM(B5,B7,B9,B10) -> 0 | C13: - | D13: - | E13: - | F13: =SUM(F5,F7,F9,F11) -> 
A17: Step 2 – Expected Change in Safety Performance
A18: Alternative 1 | F18: Estimated Lifetime of Alternative 1: | G18: =IF(Input!B68="","",Input!B68) -> 
A19: Countermeasure 1: | B19: =IF(Input!B66="","",Input!B66) ->  | D19: Countermeasure 2: | E19: =IF(Input!B67="","",Input!B67) -> 
A20: Crash Type, Severity | B20: Estimated Crashes during the Design Year | C20: CMF1 | D20: CMF2 (If Applicable) | E20: Resultant CMF | F20: Estimated Crashes during the Design Year for Alternative 1 | G20: Reduced Crashes for Alternative 1
A21: MV, ALL | B21: =IF(Input!$D$61>=1,F4+F5,"") ->  | C21: =Input!C76 -> 1 | D21: =IF(Input!B76="Not Applicable","",Input!E76) ->  | E21: =IF(Input!C76="","",IF(Input!B76="Not Applicable",Input!C76,IF(Input!B76="Multiplicative",'Construction - do not delete'!B145,IF(Input!B76="Additive",'Construction - do not delete'!D145,IF(Input!B76="Dominant Effect",'Construction - do not delete'!E145,IF(Input!B76="Dominant Common Residuals",'Construction - do not delete'!G145,"Error")))))) -> 1 | F21: =IF(B21="","",B21*E21) ->  | G21: =IF(B21="","",B21-F21) -> 
A22: MV, FI | B22: =IF(Input!$D$61>=1,F4,"") ->  | C22: =Input!C77 -> 1 | D22: =IF(Input!B77="Not Applicable","",Input!E77) ->  | E22: =IF(Input!C77="","",IF(Input!B77="Not Applicable",Input!C77,IF(Input!B77="Multiplicative",'Construction - do not delete'!B146,IF(Input!B77="Additive",'Construction - do not delete'!D146,IF(Input!B77="Dominant Effect",'Construction - do not delete'!E146,IF(Input!B77="Dominant Common Residuals",'Construction - do not delete'!G146,"Error")))))) -> 1 | F22: =IF(B22="","",B22*E22) ->  | H22: =IF(E22<0,"Error Confirm CMF Values","") -> 
A23: MV, PDO | B23: =IF(Input!$D$61>=1,F5,"") ->  | F23: =IF(B23="","",(F21-F22)) ->  | H23: =IF(F23<0,"Check CMF Input Values","") -> 
A24: SV, ALL | B24: =IF(Input!$D$61>=1,F6+F7,"") ->  | C24: =Input!C78 -> 1 | D24: =IF(Input!B78="Not Applicable","",Input!E78) ->  | E24: =IF(Input!C78="","",IF(Input!B78="Not Applicable",Input!C78,IF(Input!B78="Multiplicative",'Construction - do not delete'!B147,IF(Input!B78="Additive",'Construction - do not delete'!D147,IF(Input!B78="Dominant Effect",'Construction - do not delete'!E147,IF(Input!B78="Dominant Common Residuals",'Construction - do not delete'!G147,"Error")))))) -> 1 | F24: =IF(B24="","",B24*E24) -> 
A25: SV, FI | B25: =IF(Input!$D$61>=1,F6,"") ->  | C25: =Input!C79 -> 1 | D25: =IF(Input!B79="Not Applicable","",Input!E79) ->  | E25: =IF(Input!C79="","",IF(Input!B79="Not Applicable",Input!C79,IF(Input!B79="Multiplicative",'Construction - do not delete'!B148,IF(Input!B79="Additive",'Construction - do not delete'!D148,IF(Input!B79="Dominant Effect",'Construction - do not delete'!E148,IF(Input!B79="Dominant Common Residuals",'Construction - do not delete'!G148,"Error")))))) -> 1 | F25: =IF(B25="","",B25*E25) -> 
A26: SV, PDO | B26: =IF(Input!$D$61>=1,F7,"") ->  | F26: =IF(B26="","",F24-F25) ->  | H26: =IF(F26<0,"Check CMF Input Values","") -> 
A27: Ped, ALL | B27: =IF(Input!$D$61>=1,F8+F9,"") ->  | C27: =Input!C80 -> 1 | D27: =IF(Input!B80="Not Applicable","",Input!E80) ->  | E27: =IF(Input!C80="","",IF(Input!B80="Not Applicable",Input!C80,IF(Input!B80="Multiplicative",'Construction - do not delete'!B149,IF(Input!B80="Additive",'Construction - do not delete'!D149,IF(Input!B80="Dominant Effect",'Construction - do not delete'!E149,IF(Input!B80="Dominant Common Residuals",'Construction - do not delete'!G149,"Error")))))) -> 1 | F27: =IF(B27="","",B27*E27) ->  | G27: =IF(B27="","",B27-F27) -> 
A28: Ped, FI | B28: =IF(Input!$D$61>=1,F8,"") ->  | C28: =Input!C81 -> 1 | D28: =IF(Input!B81="Not Applicable","",Input!E81) ->  | E28: =IF(Input!C81="","",IF(Input!B81="Not Applicable",Input!C81,IF(Input!B81="Multiplicative",'Construction - do not delete'!B150,IF(Input!B81="Additive",'Construction - do not delete'!D150,IF(Input!B81="Dominant Effect",'Construction - do not delete'!E150,IF(Input!B81="Dominant Common Residuals",'Construction - do not delete'!G150,"Error")))))) -> 1 | F28: =IF(B28="","",B28*E28) ->  | G28: =IF(B28="","",B28-F28) -> 
A29: Ped, PDO | B29: =IF(Input!$D$61>=1,F9,"") ->  | F29: =IF(B29="","",F27-F28) ->  | H29: =IF(F29<0,"Check CMF Input Values","") -> 
A30: Bike, ALL | B30: =IF(Input!$D$61>=1,F10+F11,"") ->  | C30: =Input!C82 -> 1 | D30: =IF(Input!B82="Not Applicable","",Input!E82) ->  | E30: =IF(Input!C82="","",IF(Input!B82="Not Applicable",Input!C82,IF(Input!B82="Multiplicative",'Construction - do not delete'!B151,IF(Input!B82="Additive",'Construction - do not delete'!D151,IF(Input!B82="Dominant Effect",'Construction - do not delete'!E151,IF(Input!B82="Dominant Common Residuals",'Construction - do not delete'!G151,"Error")))))) -> 1 | F30: =IF(B30="","",B30*E30) ->  | G30: =IF(B30="","",B30-F30) -> 
A31: Bike, FI | B31: =IF(Input!$D$61>=1,F10,"") ->  | C31: =Input!C83 -> 1 | D31: =IF(Input!B83="Not Applicable","",Input!E83) ->  | E31: =IF(Input!C83="","",IF(Input!B83="Not Applicable",Input!C83,IF(Input!B83="Multiplicative",'Construction - do not delete'!B152,IF(Input!B83="Additive",'Construction - do not delete'!D152,IF(Input!B83="Dominant Effect",'Construction - do not delete'!E152,IF(Input!B83="Dominant Common Residuals",'Construction - do not delete'!G152,"Error")))))) -> 1
A32: Bike, PDO | B32: =IF(Input!$D$61>=1,F11,"") ->  | F32: =IF(B32="","",F30-F31) ->  | G32: =IF(B32="","",B32-F32) ->  | H32: =IF(F32<0,"Check CMF Input Values","") -> 
A33: Total, FI | B33: =IFERROR(B22+B25+B28+B31,"") ->  | F33: =IFERROR(F22+F25+F28+F31,"") ->  | G33: =IFERROR(G22+G25+G28+G31,"") -> 
A34: Total, PDO | B34: =IFERROR(B23+B26+B29+B32,"") ->  | F34: =IFERROR(F23+F26+F29+F32,"") ->  | G34: =IFERROR(G23+G26+G29+G32,"") -> 
A36: Alternative 2 | F36: Estimated Lifetime of Alternative 2: | G36: =IF(Input!C68="","",Input!C68) -> 
A37: Countermeasure 1: | B37: =IF(Input!C66="","",Input!C66) ->  | D37: Countermeasure 2: | E37: =IF(Input!C67="","",Input!C67) -> 
A38: Crash Type, Severity | B38: Estimated Crashes during the Design Year | C38: CMF1 | D38: CMF2 (If Applicable) | E38: Resultant CMF | F38: Estimated Crashes during the Design Year for Alternative 2 | G38: Reduced Crashes for Alternative 2
A39: MV, ALL | B39: =IF(Input!$D$61>=2,F4+F5,"") ->  | C39: =Input!C88 -> 1 | D39: =IF(Input!B88="Not Applicable","",Input!E88) ->  | E39: =IF(Input!C88="","",IF(Input!B88="Not Applicable",Input!C88,IF(Input!B88="Multiplicative",'Construction - do not delete'!B157,IF(Input!B88="Additive",'Construction - do not delete'!D157,IF(Input!B88="Dominant Effect",'Construction - do not delete'!E157,IF(Input!B88="Dominant Common Residuals",'Construction - do not delete'!G157,"Error")))))) -> 1 | F39: =IF(B39="","",B39*E39) ->  | G39: =IF(B39="","",B39-F39) -> 
A40: MV, FI | B40: =IF(Input!$D$61>=2,F4,"") ->  | C40: =Input!C89 -> 1 | D40: =IF(Input!B89="Not Applicable","",Input!E89) ->  | E40: =IF(Input!C89="","",IF(Input!B89="Not Applicable",Input!C89,IF(Input!B89="Multiplicative",'Construction - do not delete'!B158,IF(Input!B89="Additive",'Construction - do not delete'!D158,IF(Input!B89="Dominant Effect",'Construction - do not delete'!E158,IF(Input!B89="Dominant Common Residuals",'Construction - do not delete'!G158,"Error")))))) -> 1 | F40: =IF(B40="","",B40*E40) ->  | G40: =IF(B40="","",B40-F40) -> 
A41: MV, PDO | B41: =IF(Input!$D$61>=2,F5,"") ->  | F41: =IF(B41="","",F39-F40) ->  | G41: =IF(B41="","",B41-F41) ->  | H41: =IF(F41<0,"Check CMF Input Values","") -> 
A42: SV, ALL | B42: =IF(Input!$D$61>=2,F6+F7,"") ->  | C42: =Input!C90 -> 1 | D42: =IF(Input!B90="Not Applicable","",Input!E90) ->  | E42: =IF(Input!C90="","",IF(Input!B90="Not Applicable",Input!C90,IF(Input!B90="Multiplicative",'Construction - do not delete'!B159,IF(Input!B90="Additive",'Construction - do not delete'!D159,IF(Input!B90="Dominant Effect",'Construction - do not delete'!E159,IF(Input!B90="Dominant Common Residuals",'Construction - do not delete'!G159,"Error")))))) -> 1 | F42: =IF(B42="","",B42*E42) ->  | G42: =IF(B42="","",B42-F42) -> 
A43: SV, FI | B43: =IF(Input!$D$61>=2,F6,"") ->  | C43: =Input!C91 -> 1 | D43: =IF(Input!B91="Not Applicable","",Input!E91) ->  | E43: =IF(Input!C91="","",IF(Input!B91="Not Applicable",Input!C91,IF(Input!B91="Multiplicative",'Construction - do not delete'!B160,IF(Input!B91="Additive",'Construction - do not delete'!D160,IF(Input!B91="Dominant Effect",'Construction - do not delete'!E160,IF(Input!B91="Dominant Common Residuals",'Construction - do not delete'!G160,"Error")))))) -> 1 | F43: =IF(B43="","",B43*E43) ->  | G43: =IF(B43="","",B43-F43) -> 
A44: SV, PDO | B44: =IF(Input!$D$61>=2,F7,"") ->  | F44: =IF(B44="","",F42-F43) ->  | H44: =IF(F44<0,"Check CMF Input Values","") -> 
A45: Ped, ALL | B45: =IF(Input!$D$61>=2,F8+F9,"") ->  | C45: =Input!C92 -> 1 | D45: =IF(Input!B92="Not Applicable","",Input!E92) ->  | E45: =IF(Input!C92="","",IF(Input!B92="Not Applicable",Input!C92,IF(Input!B92="Multiplicative",'Construction - do not delete'!B161,IF(Input!B92="Additive",'Construction - do not delete'!D161,IF(Input!B92="Dominant Effect",'Construction - do not delete'!E161,IF(Input!B92="Dominant Common Residuals",'Construction - do not delete'!G161,"Error")))))) -> 1 | F45: =IF(B45="","",B45*E45) ->  | G45: =IF(B45="","",B45-F45) -> 
A46: Ped, FI | B46: =IF(Input!$D$61>=2,F8,"") ->  | C46: =Input!C93 -> 1 | D46: =IF(Input!B93="Not Applicable","",Input!E93) ->  | E46: =IF(Input!C93="","",IF(Input!B93="Not Applicable",Input!C93,IF(Input!B93="Multiplicative",'Construction - do not delete'!B162,IF(Input!B93="Additive",'Construction - do not delete'!D162,IF(Input!B93="Dominant Effect",'Construction - do not delete'!E162,IF(Input!B93="Dominant Common Residuals",'Construction - do not delete'!G162,"Error")))))) -> 1 | F46: =IF(B46="","",B46*E46) -> 
A47: Ped, PDO | B47: =IF(Input!$D$61>=2,F9,"") ->  | F47: =IF(B47="","",F45-F46) ->  | H47: =IF(F47<0,"Check CMF Input Values","") -> 
A48: Bike, ALL | B48: =IF(Input!$D$61>=2,F10+F11,"") ->  | C48: =Input!C94 -> 1 | D48: =IF(Input!B94="Not Applicable","",Input!E94) ->  | E48: =IF(Input!C94="","",IF(Input!B94="Not Applicable",Input!C94,IF(Input!B94="Multiplicative",'Construction - do not delete'!B163,IF(Input!B94="Additive",'Construction - do not delete'!D163,IF(Input!B94="Dominant Effect",'Construction - do not delete'!E163,IF(Input!B94="Dominant Common Residuals",'Construction - do not delete'!G163,"Error")))))) -> 1 | F48: =IF(B48="","",B48*E48) ->  | G48: =IF(B48="","",B48-F48) -> 
A49: Bike, FI | B49: =IF(Input!$D$61>=2,F10,"") ->  | C49: =Input!C95 -> 1 | D49: =IF(Input!B95="Not Applicable","",Input!E95) ->  | E49: =IF(Input!C95="","",IF(Input!B95="Not Applicable",Input!C95,IF(Input!B95="Multiplicative",'Construction - do not delete'!B164,IF(Input!B95="Additive",'Construction - do not delete'!D164,IF(Input!B95="Dominant Effect",'Construction - do not delete'!E164,IF(Input!B95="Dominant Common Residuals",'Construction - do not delete'!G164,"Error")))))) -> 1
A50: Bike, PDO | B50: =IF(Input!$D$61>=2,F11,"") ->  | F50: =IF(B50="","",F48-F49) ->  | H50: =IF(F50<0,"Check CMF Input Values","") -> 
A51: Total, FI | B51: =IFERROR(B40+B43+B46+B49,"") ->  | F51: =IFERROR(F40+F43+F46+F49,"") ->  | G51: =IFERROR(G40+G43+G46+G49,"") -> 
A52: Total, PDO | B52: =IFERROR(B41+B44+B47+B50,"") ->  | F52: =IFERROR(F41+F44+F47+F50,"") ->  | G52: =IFERROR(G41+G44+G47+G50,"") -> 
A54: Alternative 3 | F54: Estimated Lifetime of Alternative 3: | G54: =IF(Input!D68="","",Input!D68) -> 
A55: Countermeasure 1: | B55: =IF(Input!D66="","",Input!D66) ->  | D55: Countermeasure 2: | E55: =IF(Input!D67="","",Input!D67) -> 
A56: Crash Type, Severity | B56: Estimated Crashes during the Design Year | C56: CMF1 | D56: CMF2 (If Applicable) | E56: Resultant CMF | F56: Estimated Crashes during the Design Year for Alternative 3 | G56: Reduced Crashes for Alternative 3
A57: MV, ALL | B57: =IF(Input!$D$61>=3,F4+F5,"") ->  | C57: =Input!C100 -> 1 | D57: =IF(Input!B100="Not Applicable","",Input!E100) ->  | E57: =IF(Input!C100="","",IF(Input!B100="Not Applicable",Input!C100,IF(Input!B100="Multiplicative",'Construction - do not delete'!B169,IF(Input!B99="Additive",'Construction - do not delete'!D169,IF(Input!B100="Dominant Effect",'Construction - do not delete'!E169,IF(Input!B100="Dominant Common Residuals",'Construction - do not delete'!G169,"Error")))))) -> 1 | F57: =IF(B57="","",B57*E57) ->  | G57: =IF(B57="","",B57-F57) -> 
A58: MV, FI | B58: =IF(Input!$D$61>=3,F4,"") ->  | C58: =Input!C101 -> 1 | D58: =IF(Input!B101="Not Applicable","",Input!E101) ->  | E58: =IF(Input!C101="","",IF(Input!B101="Not Applicable",Input!C101,IF(Input!B101="Multiplicative",'Construction - do not delete'!B170,IF(Input!B100="Additive",'Construction - do not delete'!D170,IF(Input!B101="Dominant Effect",'Construction - do not delete'!E170,IF(Input!B101="Dominant Common Residuals",'Construction - do not delete'!G170,"Error")))))) -> 1 | F58: =IF(B58="","",B58*E58) ->  | G58: =IF(B58="","",B58-F58) -> 
A59: MV, PDO | B59: =IF(Input!$D$61>=3,F5,"") ->  | F59: =IF(B59="","",F57-F58) ->  | G59: =IF(B59="","",B59-F59) ->  | H59: =IF(F59<0,"Check CMF Input Values","") -> 
A60: SV, ALL | B60: =IF(Input!$D$61>=3,F6+F7,"") ->  | C60: =Input!C102 -> 1 | D60: =IF(Input!B102="Not Applicable","",Input!E102) ->  | E60: =IF(Input!C102="","",IF(Input!B102="Not Applicable",Input!C102,IF(Input!B102="Multiplicative",'Construction - do not delete'!B171,IF(Input!B102="Additive",'Construction - do not delete'!D171,IF(Input!B102="Dominant Effect",'Construction - do not delete'!E171,IF(Input!B102="Dominant Common Residuals",'Construction - do not delete'!G171,"Error")))))) -> 1 | F60: =IF(B60="","",B60*E60) ->  | G60: =IF(B60="","",B60-F60) -> 
A61: SV, FI | B61: =IF(Input!$D$61>=3,F6,"") ->  | C61: =Input!C103 -> 1 | D61: =IF(Input!B103="Not Applicable","",Input!E103) ->  | E61: =IF(Input!C103="","",IF(Input!B103="Not Applicable",Input!C103,IF(Input!B103="Multiplicative",'Construction - do not delete'!B172,IF(Input!B103="Additive",'Construction - do not delete'!D172,IF(Input!B103="Dominant Effect",'Construction - do not delete'!E172,IF(Input!B103="Dominant Common Residuals",'Construction - do not delete'!G172,"Error")))))) -> 1 | F61: =IF(B61="","",B61*E61) -> 
A62: SV, PDO | B62: =IF(Input!$D$61>=3,F7,"") ->  | F62: =IF(B62="","",F60-F61) ->  | H62: =IF(F62<0,"Check CMF Input Values","") -> 
A63: Ped, ALL | B63: =IF(Input!$D$61>=3,F8+F9,"") ->  | C63: =Input!C104 -> 1 | D63: =IF(Input!B104="Not Applicable","",Input!E104) ->  | E63: =IF(Input!C104="","",IF(Input!B104="Not Applicable",Input!C104,IF(Input!B104="Multiplicative",'Construction - do not delete'!B173,IF(Input!B104="Additive",'Construction - do not delete'!D173,IF(Input!B104="Dominant Effect",'Construction - do not delete'!E173,IF(Input!B104="Dominant Common Residuals",'Construction - do not delete'!G173,"Error")))))) -> 1 | F63: =IF(B63="","",B63*E63) ->  | G63: =IF(B63="","",B63-F63) -> 
A64: Ped, FI | B64: =IF(Input!$D$61>=3,F8,"") ->  | C64: =Input!C105 -> 1 | D64: =IF(Input!B105="Not Applicable","",Input!E105) ->  | E64: =IF(Input!C105="","",IF(Input!B105="Not Applicable",Input!C105,IF(Input!B105="Multiplicative",'Construction - do not delete'!B174,IF(Input!B105="Additive",'Construction - do not delete'!D174,IF(Input!B105="Dominant Effect",'Construction - do not delete'!E174,IF(Input!B105="Dominant Common Residuals",'Construction - do not delete'!G174,"Error")))))) -> 1
A65: Ped, PDO | B65: =IF(Input!$D$61>=3,F9,"") ->  | F65: =IF(B65="","",F63-F64) ->  | H65: =IF(F65<0,"Check CMF Input Values","") -> 
A66: Bike, ALL | B66: =IF(Input!$D$61>=3,F10+F11,"") ->  | C66: =Input!C106 -> 1 | D66: =IF(Input!B106="Not Applicable","",Input!E106) ->  | E66: =IF(Input!C106="","",IF(Input!B106="Not Applicable",Input!C106,IF(Input!B106="Multiplicative",'Construction - do not delete'!B175,IF(Input!B106="Additive",'Construction - do not delete'!D175,IF(Input!B106="Dominant Effect",'Construction - do not delete'!E175,IF(Input!B106="Dominant Common Residuals",'Construction - do not delete'!G175,"Error")))))) -> 1 | F66: =IF(B66="","",B66*E66) ->  | G66: =IF(B66="","",B66-F66) -> 
A67: Bike, FI | B67: =IF(Input!$D$61>=3,F10,"") ->  | C67: =Input!C107 -> 1 | D67: =IF(Input!B107="Not Applicable","",Input!E107) ->  | E67: =IF(Input!C107="","",IF(Input!B107="Not Applicable",Input!C107,IF(Input!B107="Multiplicative",'Construction - do not delete'!B176,IF(Input!B107="Additive",'Construction - do not delete'!D176,IF(Input!B107="Dominant Effect",'Construction - do not delete'!E176,IF(Input!B107="Dominant Common Residuals",'Construction - do not delete'!G176,"Error")))))) -> 1
A68: Bike, PDO | B68: =IF(Input!$D$61>=3,F11,"") ->  | F68: =IF(B68="","",F66-F67) ->  | H68: =IF(F68<0,"Check CMF Input Values","") -> 
A69: Total, FI | B69: =IFERROR(B58+B61+B64+B67,"") ->  | F69: =IFERROR(F58+F61+F64+F67,"") ->  | G69: =IFERROR(G58+G61+G64+G67,"") -> 
A70: Total, PDO | B70: =IFERROR(B59+B62+B65+B68,"") ->  | F70: =IFERROR(F59+F62+F65+F68,"") ->  | G70: =IFERROR(G59+G62+G65+G68,"") -> 
A72: Alternative 4 | F72: Estimated Lifetime of Alternative 4: | G72: =IF(Input!E68="","",Input!E68) -> 
A73: Countermeasure 1: | B73: =IF(Input!E66="","",Input!E66) ->  | D73: Countermeasure 2: | E73: =IF(Input!E67="","",Input!E67) -> 
A74: Crash Type, Severity | B74: Estimated Crashes during the Design Year | C74: CMF1 | D74: CMF2 (If Applicable) | E74: Resultant CMF | F74: Estimated Crashes during the Design Year for Alternative 4 | G74: Reduced Crashes for Alternative 4
A75: MV, ALL | B75: =IF(Input!$D$61=4,F4+F5,"") ->  | C75: =Input!C112 -> 1 | D75: =IF(Input!B112="Not Applicable","",Input!E112) ->  | E75: =IF(Input!C112="","",IF(Input!B112="Not Applicable",Input!C112,IF(Input!B112="Multiplicative",'Construction - do not delete'!B181,IF(Input!B112="Additive",'Construction - do not delete'!D181,IF(Input!B112="Dominant Effect",'Construction - do not delete'!E181,IF(Input!B112="Dominant Common Residuals",'Construction - do not delete'!G181,"Error")))))) -> 1 | F75: =IF(B75="","",B75*E75) ->  | G75: =IF(B75="","",B75-F75) -> 
A76: MV, FI | B76: =IF(Input!$D$61=4,F4,"") ->  | C76: =Input!C113 -> 1 | D76: =IF(Input!B113="Not Applicable","",Input!E113) ->  | E76: =IF(Input!C113="","",IF(Input!B113="Not Applicable",Input!C113,IF(Input!B113="Multiplicative",'Construction - do not delete'!B182,IF(Input!B113="Additive",'Construction - do not delete'!D182,IF(Input!B113="Dominant Effect",'Construction - do not delete'!E182,IF(Input!B113="Dominant Common Residuals",'Construction - do not delete'!G182,"Error")))))) -> 1 | F76: =IF(B76="","",B76*E76) ->  | G76: =IF(B76="","",B76-F76) -> 
A77: MV, PDO | B77: =IF(Input!$D$61=4,F5,"") ->  | F77: =IF(B77="","",F75-F76) ->  | G77: =IF(B77="","",B77-F77) ->  | H77: =IF(F77<0,"Check CMF Input Values","") -> 
A78: SV, ALL | B78: =IF(Input!$D$61=4,F6+F7,"") ->  | C78: =Input!C114 -> 1 | D78: =IF(Input!B114="Not Applicable","",Input!E114) ->  | E78: =IF(Input!C114="","",IF(Input!B114="Not Applicable",Input!C114,IF(Input!B114="Multiplicative",'Construction - do not delete'!B183,IF(Input!B114="Additive",'Construction - do not delete'!D183,IF(Input!B114="Dominant Effect",'Construction - do not delete'!E183,IF(Input!B114="Dominant Common Residuals",'Construction - do not delete'!G183,"Error")))))) -> 1 | F78: =IF(B78="","",B78*E78) ->  | G78: =IF(B78="","",B78-F78) -> 
A79: SV, FI | B79: =IF(Input!$D$61=4,F6,"") ->  | C79: =Input!C115 -> 1 | D79: =IF(Input!B115="Not Applicable","",Input!E115) ->  | E79: =IF(Input!C115="","",IF(Input!B115="Not Applicable",Input!C115,IF(Input!B115="Multiplicative",'Construction - do not delete'!B184,IF(Input!B115="Additive",'Construction - do not delete'!D184,IF(Input!B115="Dominant Effect",'Construction - do not delete'!E184,IF(Input!B115="Dominant Common Residuals",'Construction - do not delete'!G184,"Error")))))) -> 1 | F79: =IF(B79="","",B79*E79) -> 
A80: SV, PDO | B80: =IF(Input!$D$61=4,F7,"") ->  | F80: =IF(B80="","",F78-F79) ->  | H80: =IF(F80<0,"Check CMF Input Values","") -> 
A81: Ped, ALL | B81: =IF(Input!$D$61=4,F8+F9,"") ->  | C81: =Input!C116 -> 1 | D81: =IF(Input!B116="Not Applicable","",Input!E116) ->  | E81: =IF(Input!C116="","",IF(Input!B116="Not Applicable",Input!C116,IF(Input!B116="Multiplicative",'Construction - do not delete'!B185,IF(Input!B116="Additive",'Construction - do not delete'!D185,IF(Input!B116="Dominant Effect",'Construction - do not delete'!E185,IF(Input!B116="Dominant Common Residuals",'Construction - do not delete'!G185,"Error")))))) -> 1 | F81: =IF(B81="","",B81*E81) ->  | G81: =IF(B81="","",B81-F81) -> 
A82: Ped, FI | B82: =IF(Input!$D$61=4,F8,"") ->  | C82: =Input!C117 -> 1 | D82: =IF(Input!B117="Not Applicable","",Input!E117) ->  | E82: =IF(Input!C117="","",IF(Input!B117="Not Applicable",Input!C117,IF(Input!B117="Multiplicative",'Construction - do not delete'!B186,IF(Input!B117="Additive",'Construction - do not delete'!D186,IF(Input!B117="Dominant Effect",'Construction - do not delete'!E186,IF(Input!B117="Dominant Common Residuals",'Construction - do not delete'!G186,"Error")))))) -> 1
A83: Ped, PDO | B83: =IF(Input!$D$61=4,F9,"") ->  | F83: =IF(B83="","",F81-F82) ->  | H83: =IF(F83<0,"Check CMF Input Values","") -> 
A84: Bike, ALL | B84: =IF(Input!$D$61=4,F10+F11,"") ->  | C84: =Input!C118 -> 1 | D84: =IF(Input!B118="Not Applicable","",Input!E118) ->  | E84: =IF(Input!C118="","",IF(Input!B118="Not Applicable",Input!C118,IF(Input!B118="Multiplicative",'Construction - do not delete'!B187,IF(Input!B118="Additive",'Construction - do not delete'!D187,IF(Input!B118="Dominant Effect",'Construction - do not delete'!E187,IF(Input!B118="Dominant Common Residuals",'Construction - do not delete'!G187,"Error")))))) -> 1 | F84: =IF(B84="","",B84*E84) ->  | G84: =IF(B84="","",B84-F84) -> 
A85: Bike, FI | B85: =IF(Input!$D$61=4,F10,"") ->  | C85: =Input!C119 -> 1 | D85: =IF(Input!B119="Not Applicable","",Input!E119) ->  | E85: =IF(Input!C119="","",IF(Input!B119="Not Applicable",Input!C119,IF(Input!B119="Multiplicative",'Construction - do not delete'!B188,IF(Input!B119="Additive",'Construction - do not delete'!D188,IF(Input!B119="Dominant Effect",'Construction - do not delete'!E188,IF(Input!B119="Dominant Common Residuals",'Construction - do not delete'!G188,"Error")))))) -> 1
A86: Bike, PDO | B86: =IF(Input!$D$61=4,F11,"") ->  | F86: =IF(B86="","",F84-F85) ->  | H86: =IF(F86<0,"Check CMF Input Values","") -> 
A87: Total, FI | B87: =IFERROR(B76+B79+B82+B85,"") ->  | F87: =IFERROR(F76+F79+F82+F85,"") ->  | G87: =IFERROR(G76+G79+G82+G85,"") -> 
A88: Total, PDO | B88: =IFERROR(B77+B80+B83+B86,"") ->  | F88: =IFERROR(F77+F80+F83+F86,"") ->  | G88: =IFERROR(G77+G80+G83+G86,"") -> 
A92: Step 3 – Economic Analysis
B93: =IF(Input!B66="","",Input!B66) ->  | D93: =IF(Input!C66="","",Input!C66) ->  | F93: =IF(Input!D66="","",Input!D66) ->  | H93: =IF(Input!E66="","",Input!E66) -> 
B95: =IF(B93="","","Reduction") ->  | C95: =IF(B93="","","Benefits") ->  | D95: =IF(D93="","","Reduction") ->  | E95: =IF(D93="","","Benefits") ->  | F95: =IF(F93="","","Reduction") ->  | G95: =IF(F93="","","Benefits") ->  | H95: =IF(H93="","","Reduction") ->  | I95: =IF(H93="","","Benefits") -> 
A96: Total, FI | B96: =IF(G33="","",G33) ->  | C96: =IF(B96="","",INDEX(Table58[Average FI Crash Cost],MATCH(Input!C60,'Construction - do not delete'!$H$83:$H$96,0))*B96) ->  | D96: =IF(G51="","",G51) ->  | E96: =IF(D96="","",INDEX(Table58[Average FI Crash Cost],MATCH(Input!C60,'Construction - do not delete'!$H$84:$H$96,0))*D96) ->  | F96: =IF(G69="","",G69) ->  | G96: =IF(F96="","",INDEX(Table58[Average FI Crash Cost],MATCH(Input!C60,'Construction - do not delete'!$H$84:$H$96,0))*F96) ->  | H96: =IF(G87="","",G87) ->  | I96: =IF(H96="","",INDEX(Table58[Average FI Crash Cost],MATCH(Input!E60,'Construction - do not delete'!$H$84:$H$96,0))*H96) -> 
A97: Total, PDO | B97: =IF(G34="","",G34) ->  | C97: =IF(B97="","",INDEX(Table58[Average PDO Crash Cost],MATCH(Input!C60,'Construction - do not delete'!$H$84:$H$96,0))*B97) ->  | D97: =IF(G52="","",G52) ->  | E97: =IF(D97="","",INDEX(Table58[Average PDO Crash Cost],MATCH(Input!C60,'Construction - do not delete'!$H$84:$H$96,0))*D97) ->  | F97: =IF(G70="","",G70) ->  | G97: =IF(F97="","",INDEX(Table58[Average PDO Crash Cost],MATCH(Input!C60,'Construction - do not delete'!$H$84:$H$96,0))*F97) ->  | H97: =IF(G88="","",G88) ->  | I97: =IF(H97="","",INDEX(Table58[Average PDO Crash Cost],MATCH(Input!E60,'Construction - do not delete'!$H$84:$H$96,0))*H97) -> 
A98: Total, All | B98: =IF(SUM(B96:B97)=0,"",SUM(B96:B97)) ->  | C98: =IFERROR(C96+C97,"") ->  | D98: =IF(SUM(D96:D97)=0,"",SUM(D96:D97)) ->  | E98: =IFERROR(E96+E97,"") ->  | F98: =IF(SUM(F96:F97)=0,"",SUM(F96:F97)) ->  | G98: =IFERROR(G96+G97,"") ->  | H98: =IF(SUM(H96:H97)=0,"",SUM(H96:H97)) ->  | I98: =IFERROR(I96+I97,"") -> 
B100: =IF(Input!B66="","",Input!B66) ->  | C100: =IF(Input!C66="","",Input!C66) ->  | D100: =IF(Input!D66="","",Input!D66) ->  | E100: =IF(Input!E66="","",Input!E66) -> 
A101: Design Year Benefit | B101: =C98 ->  | C101: =E98 ->  | D101: =G98 ->  | E101: =I98 -> 
A102: Present Value Conversion Factor (from Equation 13) | B102: =IF(Input!$D$61>=1,(((1+Input!$B$61)^Input!B68)-1)/(Input!$B$61*((1+Input!$B$61)^Input!B68)),"") ->  | C102: =IF(Input!$D$61>=2,(((1+Input!$B$61)^Input!C68)-1)/(Input!$B$61*((1+Input!$B$61)^Input!C68)),"") ->  | D102: =IF(Input!$D$61>=3,(((1+Input!$B$61)^Input!D68)-1)/(Input!$B$61*((1+Input!$B$61)^Input!D68)),"") ->  | E102: =IF(Input!$D$61>=4,(((1+Input!$B$61)^Input!E68)-1)/(Input!$B$61*((1+Input!$B$61)^Input!E68)),"") -> 
A103: Lifetime Present Value | B103: =IF(B102="","",B101*B102) ->  | C103: =IF(C102="","",C101*C102) ->  | D103: =IF(D102="","",D101*D102) ->  | E103: =IF(E102="","",E101*E102) -> 
A104: Cost | B104: =Input!B69 -> 0 | C104: =IF(Input!D61<2,"",Input!C69) ->  | D104: =IF(Input!D61<3,"",Input!D69) ->  | E104: =IF(Input!D61<4,"",Input!E69) -> 
A105: Benefit-Cost Ratio | B105: =IF(B102="","",B103/B104) ->  | C105: =IF(C102="","",C103/C104) ->  | D105: =IF(D102="","",D103/D104) ->  | E105: =IF(E102="","",E103/E104) -> 

Sheet Intersection Tables (hidden)
A1: Legend
A4: This sheet contains all the relevant tables required for prediction of crashes at urban and suburban intersections. Please do not delete this worksheet.
B8: Tables Affiliated with SPF Computation: | Y8: Tables Affiliated with Crash Modification Factors:
B10: Table 12-10: SPF Coefficients for Multiple-Vehicle Collisions at Intersections | I10: Table 12-12: SPF Coefficients for Single-Vehicle Crashes at Intersections | P10: Table 12-14: SPF for Vehicle-Pedestrian Collisions at Signalized Intersections | Y10: Table 12-24: Crash Modification Factor (CMF1i) for Installation of Left-Turn Lanes on Intersection Approaches
B12: Intersection type | C12: Coefficients use in Eqn. 12-21 | F12: Overdispersion parameter (k) | I12: Intersection type | J12: Coefficients use in Eqn. 12-24 | M12: Overdispersion parameter (k) | P12: Intersection type | Q12: Coefficients use in Eqn. 12-29 | V12: Overdispersion parameter (k) | Y12: Intersection Type | Z12: Intersection traffic control | AB12: Number of approaches with left-turn lanes a
C13: Intercept | D13: AADTmaj | E13: AADTmin | J13: Intercept | K13: AADTmaj | L13: AADTmin | Q13: Intercept | R13: AADTtot | S13: AADTmin/AADTmaj | T13: PedVol | U13: nlanesx
C14: (a) | D14: (b) | E14: (c) | J14: (a) | K14: (b) | L14: (c) | Q14: (a) | R14: (b) | S14: (c) | T14: (d) | U14: (e) | AB14: One approach | AC14: Two approaches | AD14: Three approaches | AE14: Four approaches
B15: Total crashes | I15: Total crashes | P15: Total crashes
B16: 3ST | C16: -13.36 | D16: 1.11 | E16: 0.41 | F16: 0.8 | I16: 3ST | J16: -6.81 | K16: 0.16 | L16: 0.51 | M16: 1.14 | P16: 3SG | Q16: -6.6 | R16: 0.05 | S16: 0.24 | T16: 0.41 | U16: 0.09 | V16: 0.52 | Y16: 3ST | Z16: Minor-road STOP controlb | AB16: 0.67 | AC16: 0.45 | AD16: -- | AE16: --
B17: 3SG | C17: -12.13 | D17: 1.11 | E17: 0.26 | F17: 0.33 | I17: 3SG | J17: -9.02 | K17: 0.42 | L17: 0.4 | M17: 0.36 | P17: 4SG | Q17: -9.53 | R17: 0.4 | S17: 0.26 | T17: 0.45 | U17: 0.04 | V17: 0.24 | Y17: 3SG | Z17: Traffic signal | AB17: 0.93 | AC17: 0.86 | AD17: 0.8
B18: 4ST | C18: -8.9 | D18: 0.82 | E18: 0.25 | F18: 0.4 | I18: 4ST | J18: -5.33 | K18: 0.33 | L18: 0.12 | M18: 0.65 | Y18: 4ST | Z18: Minor-road STOP controla | AB18: 0.73 | AC18: 0.53 | AD18: -- | AE18: --
B19: 4SG | C19: -10.99 | D19: 1.07 | E19: 0.23 | F19: 0.39 | I19: 4SG | J19: -10.21 | K19: 0.68 | L19: 0.27 | M19: 0.36 | Y19: 4SG | Z19: Traffic signal | AB19: 0.9 | AC19: 0.81 | AD19: 0.73 | AE19: 0.66
B20: Fatal-and-injury crashes | I20: Fatal-and-injury crashes | Y20: a STOP-controlled approaches are not considered in determining the number of approaches with left-turn lanes.
B21: 3ST | C21: -14.01 | D21: 1.16 | E21: 0.3 | F21: 0.69 | I21: 3ST | J21: -- | K21: -- | L21: -- | M21: 0 | Y21: b Stop signs present on minor-road approaches only.
B22: 3SG | C22: -11.58 | D22: 1.02 | E22: 0.17 | F22: 0.3 | I22: 3SG | J22: -9.75 | K22: 0.27 | L22: 0.51 | M22: 0.24
B23: 4ST | C23: -11.13 | D23: 0.93 | E23: 0.28 | F23: 0.48 | I23: 4ST | J23: -- | K23: -- | L23: -- | M23: 0
B24: 4SG | C24: -13.14 | D24: 1.18 | E24: 0.22 | F24: 0.33 | I24: 4SG | J24: -9.25 | K24: 0.43 | L24: 0.29 | M24: 0.09
B25: Property-damage-only crashes | I25: Property-damage-only crashes | Y25: Table 12-26: Crash Modification Factor (CMF3i) for Installation of Right-Turn Lanes on Intersection Approaches
B26: 3ST | C26: -15.38 | D26: 1.2 | E26: 0.51 | F26: 0.77 | I26: 3ST | J26: -8.36 | K26: 0.25 | L26: 0.55 | M26: 1.29
B27: 3SG | C27: -13.24 | D27: 1.14 | E27: 0.3 | F27: 0.36 | I27: 3SG | J27: -9.08 | K27: 0.45 | L27: 0.33 | M27: 0.53 | Y27: Intersection Type | Z27: Intersection traffic control | AB27: Number of approaches with right-turn lanes a
B28: 4ST | C28: -8.74 | D28: 0.77 | E28: 0.23 | F28: 0.4 | I28: 4ST | J28: -7.04 | K28: 0.36 | L28: 0.25 | M28: 0.54
B29: 4SG | C29: -11.02 | D29: 1.02 | E29: 0.24 | F29: 0.44 | I29: 4SG | J29: -11.34 | K29: 0.78 | L29: 0.25 | M29: 0.44 | AB29: One approach | AC29: Two approaches | AD29: Three approaches | AE29: Four approaches
I30: Note: Where no models are available, Equations 12-27 is used.
I31: Equation 12-27: | Y31: 3ST | Z31: Minor-road STOP controlb | AB31: 0.86 | AC31: 0.74 | AD31: -- | AE31: --
I32: Nbisv(FI) = Nbisv(TOTAL) x fbisv | Y32: 3SG | Z32: Traffic signal | AB32: 0.96 | AC32: 0.92 | AD32: -- | AE32: --
Y33: 4ST | Z33: Minor-road STOP controla | AB33: 0.86 | AC33: 0.74 | AD33: -- | AE33: --
Y34: 4SG | Z34: Traffic signal | AB34: 0.96 | AC34: 0.92 | AD34: 0.88 | AE34: 0.85
Y35: a STOP-controlled approaches are not considered in determining the number of approaches with right-turn lanes.
B36: Tables Affiliated with Crash Statistics: | Y36: b Stop signs present on minor-road approaches only.
B38: Table 12-11: Distribution of Multiple-Vehicle Collisions for Intersections by Collision Type
D40: Proportion of crashes by severity level for specific intersection types | Y40: Table 12-25: Crash Modification Factor (CMF2i) for Type of Left-Turn Signal Phasing
D41: HSM-Provided Values
B42: Collision type | D42: 3ST | F42: 3SG | H42: 4ST | J42: 4SG | Y42: Type of Left-Turn Signal Phasing | AC42: CMF2i
D43: FI | E43: PDO | F43: FI | G43: PDO | H43: FI | I43: PDO | J43: FI | K43: PDO
B44: Rear-end collision | D44: 0.421 | E44: 0.44 | F44: 0.549 | G44: 0.546 | H44: 0.338 | I44: 0.374 | J44: 0.45 | K44: 0.483 | Y44: Permissive | AC44: 1
B45: Head-on collision | D45: 0.045 | E45: 0.023 | F45: 0.038 | G45: 0.02 | H45: 0.041 | I45: 0.03 | J45: 0.049 | K45: 0.03 | Y45: Protected/permissive or permissive/protected | AC45: 0.99
B46: Angle collision | D46: 0.343 | E46: 0.262 | F46: 0.28 | G46: 0.204 | H46: 0.44 | I46: 0.335 | J46: 0.347 | K46: 0.244 | Y46: Protected | AC46: 0.94
B47: Sideswipe | D47: 0.126 | E47: 0.04 | F47: 0.076 | G47: 0.032 | H47: 0.121 | I47: 0.044 | J47: 0.099 | K47: 0.032
B48: Other multiple-vehicle collision | D48: 0.065 | E48: 0.235 | F48: 0.057 | G48: 0.198 | H48: 0.06 | I48: 0.217 | J48: 0.055 | K48: 0.211
B49: Source: HSIS data for Washington (2002-2006)
B50: Collision type | D50: Locally-Derived Values (Massachusetts) | Y50: Table 12-28. Crash Modification Factor (CMF1p) for the Presence of Bus Stops near the Intersection
D51: 3ST | F51: 3SG | H51: 4ST | J51: 4SG
D52: FI | E52: PDO | F52: FI | G52: PDO | H52: FI | I52: PDO | J52: FI | K52: PDO | Y52: Number of Bus Stops within 1,000 ft of the Intersection | AC52: CMF1p
B53: Rear-end collision | D53: 0.4109589041 | E53: 0.3368421053 | F53: 0.5804878049 | G53: 0.6045548654 | H53: 0.1570247934 | I53: 0.185 | J53: 0.452 | K53: 0.4221879815
B54: Head-on collision | D54: 0.01369863014 | E54: 0.01052631579 | F54: 0.03414634146 | G54: 0.01449275362 | H54: 0.00826446281 | I54: 0.015 | J54: 0.036 | K54: 0.03852080123 | Y54: 0 | AC54: 1
B55: Angle collision | D55: 0.5616438356 | E55: 0.5789473684 | F55: 0.3414634146 | G55: 0.265010352 | H55: 0.8181818182 | I55: 0.72 | J55: 0.492 | K55: 0.4252696456 | Y55: 1 or 2 | AC55: 2.78
B56: Sideswipe | D56: 0.01369863014 | E56: 0.07368421053 | F56: 0.03902439024 | G56: 0.115942029 | H56: 0.01652892562 | I56: 0.08 | J56: 0.02 | K56: 0.1124807396 | Y56: 3 or more | AC56: 4.15
B57: Other multiple-vehicle collision | D57: 0 | E57: 0 | F57: 0.00487804878 | G57: 0 | H57: 0 | I57: 0 | J57: 0 | K57: 0.001540832049
B58: Note: HSM-Provided values based on HSIS data for California (2002-2006)
Y60: Table 12-29. Crash Modification Factor (CMF2p) for the Presence of Schools near the Intersection
B61: Table 12-13: Distribution of Single-Vehicle Crashes for Intersections by Collision Type
Y62: Number of Schools within 1,000 ft of the Intersection | AC62: CMF2p
D63: Proportion of crashes by severity level for specific intersection types
D64: HSM-Provided Values | Y64: No school present | AC64: 1
B65: Collision type | D65: 3ST | F65: 3SG | H65: 4ST | J65: 4SG | Y65: School present | AC65: 1.35
D66: FI | E66: PDO | F66: FI | G66: PDO | H66: FI | I66: PDO | J66: FI | K66: PDO
B67: Collision with parked vehicle | D67: 0.001 | E67: 0.003 | F67: 0.001 | G67: 0.001 | H67: 0.001 | I67: 0.001 | J67: 0.001 | K67: 0.001
B68: Collision with animal | D68: 0.003 | E68: 0.018 | F68: 0.001 | G68: 0.003 | H68: 0.001 | I68: 0.026 | J68: 0.002 | K68: 0.002
B69: Collision with fixed object | D69: 0.762 | E69: 0.8341 | F69: 0.653 | G69: 0.895 | H69: 0.679 | I69: 0.847 | J69: 0.744 | K69: 0.87 | Y69: Table 12-30. Crash Modification Factor (CMF3p) for the Presence of Alcohol Sales Establishments near the Intersection
B70: Collision with other object | D70: 0.09 | E70: 0.092 | F70: 0.091 | G70: 0.069 | H70: 0.089 | I70: 0.07 | J70: 0.072 | K70: 0.07
B71: Other single-vehicle collision | D71: 0.039 | E71: 0.023 | F71: 0.045 | G71: 0.018 | H71: 0.051 | I71: 0.007 | J71: 0.04 | K71: 0.023 | Y71: Number of Alcohol Sales Establishment within 1,000 ft of the Intersection | AC71: CMF3p
B72: Noncollision | D72: 0.105 | E72: 0.03 | F72: 0.209 | G72: 0.014 | H72: 0.179 | I72: 0.049 | J72: 0.141 | K72: 0.034
B73: Source: HSM-Provided values base on HSIS data for California (2002-2006) | Y73: 0 | AC73: 1
B74: Collision type | D74: Locally-Derived Values | Y74: 1--8 | AC74: 1.12
D75: 3ST | F75: 3SG | H75: 4ST | J75: 4SG | Y75: 9 or more | AC75: 1.56
D76: FI | E76: PDO | F76: FI | G76: PDO | H76: FI | I76: PDO | J76: FI | K76: PDO
B77: Collision with parked vehicle | D77: 0 | E77: 0.04347826087 | F77: 0 | G77: 0.05263157895 | H77: 0 | I77: 0.1428571429 | J77: 0 | K77: 0.02777777778
B78: Collision with animal | D78: 0 | E78: 0.04347826087 | F78: 0 | G78: 0 | H78: 0 | I78: 0.2857142857 | J78: 0 | K78: 0.02777777778
B79: Collision with fixed object | D79: 0.625 | E79: 0.8695652174 | F79: 0.9 | G79: 0.8947368421 | H79: 0.6666666667 | I79: 0.5714285714 | J79: 0.625 | K79: 0.8611111111
B80: Collision with other object | D80: 0.125 | E80: 0.04347826087 | F80: 0 | G80: 0.02631578947 | H80: 0 | I80: 0 | J80: 0 | K80: 0.05555555556
B81: Other single-vehicle collision | D81: 0 | E81: 0 | F81: 0 | G81: 0.02631578947 | H81: 0 | I81: 0 | J81: 0.125 | K81: 0.02777777778
B82: Noncollision | D82: 0.25 | E82: 0 | F82: 0.1 | G82: 0 | H82: 0.3333333333 | I82: 0 | J82: 0.25 | K82: 0
B86: Table 12-27: Nighttime Crash Proportions for Unlighted Intersections
D88: Proportion of crashes that occur at night, pni
D89: HSM-Provided Values | F89: Locally-Derived Values
B90: Intersection Type
B91: 3ST | D91: 0.238 | F91: --
B92: 4ST | D92: 0.229 | F92: 0.273
B93: 3SG | D93: 0.235 | F93: --
B94: 4SG | D94: 0.235 | F94: 0.214
A110: MassDOT METHOD
B113: Tables Affiliated with SPF Computation:
B116: Table 12-10 Modified: SPF Coefficients for Multiple-Vehicle Collisions at Intersections | I116: Table 1A: Coefficients Derived From Historical Data for Single-Vehicle Collisions at Intersections | P116: Table 1B: Number of Vehicle-Pedestrian and Vehicle-Bike Crashes by Manner and Injury Severity
B118: Intersection type | C118: Coefficients use in Eqn. 12-21 | F118: Overdispersion parameter (k) | I118: Intersection type | J118: Total Single Vehicle Crashes | K118: Total Multiple Vehicle Crashes | L118: Coefficient Derived | AA118: Locally-Derived Values | AC118: HSM-Provided Values
C119: Intercept | D119: AADTmaj | E119: AADTmin | P119: Intersection type | Q119: Total Single Vehicle Crashes | R119: Total Multiple Vehicle Crashes | S119: Veh-Pedestrian | V119: Veh-Bike | Y119: Total (FI+PDO) | AA119: Veh-Ped FI ω Coefficient | AB119: Veh-Bike ω Coefficient | AC119: Veh-Ped FI ω Coefficient | AD119: Veh-Bike ω Coefficient
C120: (a) | D120: (b) | E120: (c)
B121: Total crashes | I121: 3ST | J121: 31 | K121: 263 | L121: =J121/K121 -> 0.1178707224
B122: 3ST | C122: -20.02 | D122: 1.66 | E122: 0.54 | F122: 0.24 | I122: 3SG | J122: 48 | K122: 688 | L122: =J122/K122 -> 0.06976744186 | S122: FI | T122: PDO | U122: Total | V122: FI | W122: PDO | X122: Total | Y122: FI | Z122: PDO
B123: 3SG | C123: -8.2987 | D123: 0.8122 | E123: 0.2122 | F123: 0.4071661238 | I123: 4ST | J123: 10 | K123: 321 | L123: =J123/K123 -> 0.03115264798 | P123: 3ST | Q123: 31 | R123: 263 | S123: 6 | T123: 0 | U123: =S123+T123 -> 6 | V123: 8 | W123: 2 | X123: =V123+W123 -> 10 | Y123: =S123+V123 -> 14 | Z123: 2 | AA123: =U123/(Q123+R123) -> 0.02040816327 | AB123: =X123/(Q123+R123) -> 0.03401360544 | AC123: 0.021 | AD123: 0.016
B124: 4ST | C124: -8.6972 | D124: 0.3086 | E124: 0.8562 | F124: 0.3643385434 | I124: 4SG | J124: 44 | K124: 899 | L124: =J124/K124 -> 0.0489432703 | P124: 3SG | Q124: 48 | R124: 688 | S124: 11 | T124: 4 | U124: =S124+T124 -> 15 | V124: 10 | W124: 6 | X124: =V124+W124 -> 16 | Y124: 21 | Z124: 10 | AA124: =U124/(Q124+R124) -> 0.02038043478 | AB124: =X124/(Q124+R124) -> 0.02173913043 | AD124: 0.011
B125: 4SG | C125: -11.7899 | D125: 0.9177 | E125: 0.5217 | F125: 0.09502361337 | P125: 4ST | Q125: 10 | R125: 321 | S125: 5 | T125: 0 | U125: =S125+T125 -> 5 | V125: 2 | W125: 1 | X125: =V125+W125 -> 3 | Y125: 7 | Z125: 1 | AA125: =U125/(Q125+R125) -> 0.01510574018 | AB125: =X125/(Q125+R125) -> 0.009063444109 | AC125: 0.022 | AD125: 0.018
P126: 4SG | Q126: 44 | R126: 899 | S126: 26 | T126: 1 | U126: =S126+T126 -> 27 | V126: 30 | W126: 10 | X126: =V126+W126 -> 40 | Y126: 56 | Z126: 11 | AA126: =U126/(Q126+R126) -> 0.02863202545 | AB126: =X126/(Q126+R126) -> 0.04241781548 | AD126: 0.015
P129: Table 1C: Coefficients of FI and PDO Derived From Historical Data for multiple-vehicle Collisions at Intersections
P131: Intersection type | Q131: Total Single Vehicle Crashes | R131: Total Multiple Vehicle Crashes | S131: Single Vehicle FI | T131: Single Vehicle PDO | U131: Single Vehicle FI Ratio | V131: Single Vehicle PDO Ratio | W131: Multiple Vehicle FI | X131: Multiple Vehicle PDO | Y131: Multiple Vehicle FI Ratio | Z131: Multiple Vehicle PDO Ratio
P134: 3ST | Q134: 31 | R134: 263 | S134: 8 | T134: 23 | U134: =S134/Q134 -> 0.2580645161 | V134: =1-U134 -> 0.7419354839 | W134: 73 | X134: 190 | Y134: =W134/R134 -> 0.2775665399 | Z134: =1-Y134 -> 0.7224334601
P135: 3SG | Q135: 48 | R135: 688 | S135: 10 | T135: 38 | U135: =S135/Q135 -> 0.2083333333 | V135: =1-U135 -> 0.7916666667 | W135: 205 | X135: 483 | Y135: =W135/R135 -> 0.2979651163 | Z135: =1-Y135 -> 0.7020348837
P136: 4ST | Q136: 10 | R136: 321 | S136: 3 | T136: 7 | U136: =S136/Q136 -> 0.3 | V136: =1-U136 -> 0.7 | W136: 121 | X136: 200 | Y136: =W136/R136 -> 0.3769470405 | Z136: =1-Y136 -> 0.6230529595
P137: 4SG | Q137: 44 | R137: 899 | S137: 8 | T137: 36 | U137: =S137/Q137 -> 0.1818181818 | V137: =1-U137 -> 0.8181818182 | W137: 250 | X137: 649 | Y137: =W137/R137 -> 0.2780867631 | Z137: =1-Y137 -> 0.7219132369

Sheet Calibration Factors (hidden)
C4: Calibration Factors
D6: 3SG | E6: 3ST | F6: 4SG | G6: 4ST
C7: HSM Method | D7: 1.5 | E7: 0.77 | F7: 1.49 | G7: 1.03
C8: MassDOT Method | D8: 0.95 | E8: 1.13 | F8: 1 | G8: 1.04

Sheet Construction - do not delete (hidden)
A1: NOTICE!
A2: This sheet is present to ensure the proper functioning of the excel workbook. Please do not tamper with or delete this worksheet. Doing so, would result in improper functioning of the workbook.
B4: Lane Width | D4: Shoulder Width | F4: RHR
B5: 9 | D5: 0 | F5: 1
B6: 9.5 | D6: 1 | F6: 2
B7: 10 | D7: 2 | F7: 3
B8: 10.5 | D8: 3 | F8: 4
B9: 11 | D9: 4 | F9: 5
B10: 11.5 | D10: 5 | F10: 6
B11: 12 | D11: 6 | F11: 7
D12: 7
D13: 8
H16: Centerline | J16: Passing | L16: Local
D17: Shoulder Type | F17: Spiral | H17: Rumble Strips | J17: Lane | L17: Yes
D18: Paved | F18: Not Present | H18: Not Present | J18: Not Present | L18: No
D19: Gravel | F19: Present | H19: Present | J19: Present (1 lane)
D20: Composite | J20: Present (2 lanes)
D21: Turf
F23: TWLTL | H23: Lighting | J23: SpEnforce
F24: Not Present | H24: Not Present | J24: Not Present
F25: Present | H25: Present | J25: Present
D28: Intersection Type | F28: No. of Left Turn Approaches | H28: No. of Right Turn Approaches | J28: Intersection Lighting | L28: Use of Coefficients
D29: Itype | F29: Lapproach | H29: Rapproach | J29: Ilight | L29: Differ
D30: 3ST | F30: 0 | H30: 0 | J30: Not Present | L30: Yes
D31: 4ST | F31: 1 | H31: 1 | J31: Present | L31: No
D32: 4SG | F32: 2 | H32: 2
F33: 3 | H33: 3
F34: 4 | H34: 4
D36: Median Width
D37: Mwidth | F37: Division | H37: Sslope | J37: Shld2 | L37: Iapproach
D38: 10 | F38: Divided | H38: 1:2 or Steeper | J38: 0 | L38: 0
D39: 20 | F39: Undivided | H39: 1:4 | J39: 1 | L39: 1
D40: 30 | H40: 1:5 | J40: 2 | L40: 2
D41: 40 | H41: 1:6 | J41: 3
D42: 50 | H42: 1:7 or Flatter | J42: 4
D43: 60 | J43: 5
D44: 70 | J44: 6
D45: 80 | J45: 7
D46: 90 | J46: 8
D47: 100 | J47: 9
J48: 10
D52: Urban / Suburban Fields:
D55: Rtype | F55: UMedWidth | H55: PresOrNot | J55: OnStreetType | L55: OffsetFO | N55: Posted
D56: 2U | F56: Not Present | H56: Not Present | J56: None | L56: 2 | N56: Posted Speed 30 mph or Lower
D57: 3T | F57: 10 | H57: Present | J57: Parallel (Residential) | L57: 5 | N57: Posted Speed Greater than 30 mph
D58: 4U | F58: 15 | J58: Parallel (Comm/Ind) | L58: 10
D59: 4D | F59: 20 | J59: Angle (Residential) | L59: 15
D60: 5T | F60: 30 | J60: Angle (Comm/Ind) | L60: 20
F61: 40 | L61: 25
F62: 50 | L62: ≥ 30
F63: 60
F64: 70
F65: 80
F66: 90
F67: 100
D70: Turning Lanes | F70: Intersection Type2 | H70: Phasing | J70: Unsignalized Approaches | L70: Phasing 2
D71: Tlanes | F71: Itype2 | H71: Phasing | J71: UnsigApproach | L71: Phasing2
D72: 0 | F72: 3ST | H72: Permissive | J72: 0 | L72: Not Applicable
D73: 1 | F73: 3SG | H73: Protected | J73: 1 | L73: Permissive
D74: 2 | F74: 4ST | H74: Protected / Permissive | J74: 2 | L74: Protected
D75: 3 | F75: 4SG | H75: Permissive / Protected | L75: Protected / Permissive
D76: 4 | L76: Permissive / Protected
V79: =IF(Input!#REF!="","",IF(Input!#REF!>#REF!,"AADT Out of Range", "AADT OK")) -> 
A82: Intersection Type | C82: Number of Alternatives | E82: Spreadsheet Selection | H82: Facility Type | I82: Facility Type Code | J82: Average FI Crash Cost | K82: Average PDO Crash Cost | N82: Study Period (Years) | V82: DO NOT MODIFY | AB82: DO NOT MODIFY
A83: 3ST | C83: 0 | E83: 3ST HSM | H83: Please Select Facility Type | N83: 1 | V83: Major AADT Verification | AB83: Minor AADT Verification
A84: 3SG | C84: 1 | E84: 4ST HSM | H84: Urban Three-Leg Signalized Intersection | I84: U3SG | J84: 339500 | K84: 16700 | N84: 2 | V84: =V85&W85&X85&Y85&Z85 -> =if('Input'!D50>'3ST HSM'!F12,"AADT Out of Range","AADT OK") | AB84: =AB85&AC85&AD85&AE85&AF85 -> =if('Input'!D52>'3ST HSM'!F13,"AADT Out of Range","AADT OK")
A85: 4ST | C85: 2 | E85: 3SG HSM | H85: Urban Three-Leg Stop-Controlled Intersection | I85: U3ST | J85: 352800 | K85: 16700 | N85: 3 | V85: =if(' | W85: Input | X85: '!D50>' | Y85: ='Input Summary'!B10 -> 3ST HSM | Z85: '!F12,"AADT Out of Range","AADT OK") | AB85: =if(' | AC85: Input | AD85: '!D52>' | AE85: ='Input Summary'!B10 -> 3ST HSM | AF85: '!F13,"AADT Out of Range","AADT OK")
A86: 4SG | C86: 3 | E86: 4SG HSM | H86: Urban Four-Leg Signalized Intersection | I86: U4SG | J86: 327200 | K86: 16700 | N86: 4 | V86: =V87&W87&X87&Y87&Z87 -> =if('Input'!E50>'3ST HSM'!F12,"AADT Out of Range","AADT OK") | AB86: =AB87&AC87&AD87&AE87&AF87 -> =if('Input'!E52>'3ST HSM'!F13,"AADT Out of Range","AADT OK")
C87: 4 | H87: Urban Four-Leg Stop-Controlled Intersection | I87: U4ST | J87: 319100 | K87: 16700 | N87: 5 | V87: =if(' | W87: Input | X87: '!E50>' | Y87: ='Input Summary'!B10 -> 3ST HSM | Z87: '!F12,"AADT Out of Range","AADT OK") | AB87: =if(' | AC87: Input | AD87: '!E52>' | AE87: ='Input Summary'!B10 -> 3ST HSM | AF87: '!F13,"AADT Out of Range","AADT OK")
H88: Urban Two-Lane Undivided Arterial – District 1 | I88: U2UAD1 | J88: 501300 | K88: 16700 | N88: 6 | V88: =V89&W89&X89&Y89&Z89 -> =if('Input'!F50>'3ST HSM'!F12,"AADT Out of Range","AADT OK") | AB88: =AB89&AC89&AD89&AE89&AF89 -> =if('Input'!F52>'3ST HSM'!F13,"AADT Out of Range","AADT OK")
H89: Urban Two-Lane Undivided Arterial – District 2 | I89: U2UAD2 | J89: 490700 | K89: 16700 | N89: 7 | V89: =if(' | W89: Input | X89: '!F50>' | Y89: ='Input Summary'!B10 -> 3ST HSM | Z89: '!F12,"AADT Out of Range","AADT OK") | AB89: =if(' | AC89: Input | AD89: '!F52>' | AE89: ='Input Summary'!B10 -> 3ST HSM | AF89: '!F13,"AADT Out of Range","AADT OK")
H90: Urban Two-Lane Undivided Arterial – District 3 | I90: U2UAD3 | J90: 532100 | K90: 16700 | N90: 8 | V90: =V91&W91&X91&Y91&Z91 -> =if('Input'!G50>'3ST HSM'!F12,"AADT Out of Range","AADT OK") | AB90: =AB91&AC91&AD91&AE91&AF91 -> =if('Input'!G52>'3ST HSM'!F13,"AADT Out of Range","AADT OK")
H91: Urban Two-Lane Undivided Arterial – District 4 | I91: U2UAD4 | J91: 402400 | K91: 16700 | N91: 9 | V91: =if(' | W91: Input | X91: '!G50>' | Y91: ='Input Summary'!B10 -> 3ST HSM | Z91: '!F12,"AADT Out of Range","AADT OK") | AB91: =if(' | AC91: Input | AD91: '!G52>' | AE91: ='Input Summary'!B10 -> 3ST HSM | AF91: '!F13,"AADT Out of Range","AADT OK")
H92: Urban Two-Lane Undivided Arterial – District 5 | I92: U2UAD5 | J92: 522500 | K92: 16700 | N92: 10 | V92: =V93&W93&X93&Y93&Z93 -> =if('Input'!H50>'3ST HSM'!F12,"AADT Out of Range","AADT OK") | AB92: =AB93&AC93&AD93&AE93&AF93 -> =if('Input'!H52>'3ST HSM'!F13,"AADT Out of Range","AADT OK")
H93: Urban Two-Lane Undivided Arterial – District 6 | I93: U2UAD6 | J93: 462000 | K93: 16700 | V93: =if(' | W93: Input | X93: '!H50>' | Y93: ='Input Summary'!B10 -> 3ST HSM | Z93: '!F12,"AADT Out of Range","AADT OK") | AB93: =if(' | AC93: Input | AD93: '!H52>' | AE93: ='Input Summary'!B10 -> 3ST HSM | AF93: '!F13,"AADT Out of Range","AADT OK")
H94: Urban Four-Lane Undivided Arterial | I94: U4UA | J94: 481300 | K94: 16700 | V94: =V95&W95&X95&Y95&Z95 -> =if('Input'!I50>'3ST HSM'!F12,"AADT Out of Range","AADT OK") | AB94: =AB95&AC95&AD95&AE95&AF95 -> =if('Input'!I52>'3ST HSM'!F13,"AADT Out of Range","AADT OK")
H95: Urban Four-Lane Divided Arterial | I95: U4DA | J95: 530800 | K95: 16700 | V95: =if(' | W95: Input | X95: '!I50>' | Y95: ='Input Summary'!B10 -> 3ST HSM | Z95: '!F12,"AADT Out of Range","AADT OK") | AB95: =if(' | AC95: Input | AD95: '!I52>' | AE95: ='Input Summary'!B10 -> 3ST HSM | AF95: '!F13,"AADT Out of Range","AADT OK")
H96: Rural Two-Lane Undivided Highway | I96: R2UAC | J96: 878400 | K96: 16700 | V96: =V97&W97&X97&Y97&Z97 -> =if('Input'!J50>'3ST HSM'!F12,"AADT Out of Range","AADT OK") | AB96: =AB97&AC97&AD97&AE97&AF97 -> =if('Input'!J52>'3ST HSM'!F13,"AADT Out of Range","AADT OK")
V97: =if(' | W97: Input | X97: '!J50>' | Y97: ='Input Summary'!B10 -> 3ST HSM | Z97: '!F12,"AADT Out of Range","AADT OK") | AB97: =if(' | AC97: Input | AD97: '!J52>' | AE97: ='Input Summary'!B10 -> 3ST HSM | AF97: '!F13,"AADT Out of Range","AADT OK")
V98: =V99&W99&X99&Y99&Z99 -> =if('Input'!K50>'3ST HSM'!F12,"AADT Out of Range","AADT OK") | AB98: =AB99&AC99&AD99&AE99&AF99 -> =if('Input'!K52>'3ST HSM'!F13,"AADT Out of Range","AADT OK")
V99: =if(' | W99: Input | X99: '!K50>' | Y99: ='Input Summary'!B10 -> 3ST HSM | Z99: '!F12,"AADT Out of Range","AADT OK") | AB99: =if(' | AC99: Input | AD99: '!K52>' | AE99: ='Input Summary'!B10 -> 3ST HSM | AF99: '!F13,"AADT Out of Range","AADT OK")
V100: =V101&W101&X101&Y101&Z101 -> =if('Input'!L50>'3ST HSM'!F12,"AADT Out of Range","AADT OK") | AB100: =AB101&AC101&AD101&AE101&AF101 -> =if('Input'!L52>'3ST HSM'!F13,"AADT Out of Range","AADT OK")
V101: =if(' | W101: Input | X101: '!L50>' | Y101: ='Input Summary'!B10 -> 3ST HSM | Z101: '!F12,"AADT Out of Range","AADT OK") | AB101: =if(' | AC101: Input | AD101: '!L52>' | AE101: ='Input Summary'!B10 -> 3ST HSM | AF101: '!F13,"AADT Out of Range","AADT OK")
V102: =V103&W103&X103&Y103&Z103 -> =if('Input'!M50>'3ST HSM'!F12,"AADT Out of Range","AADT OK") | AB102: =AB103&AC103&AD103&AE103&AF103 -> =if('Input'!M52>'3ST HSM'!F13,"AADT Out of Range","AADT OK")
V103: =if(' | W103: Input | X103: '!M50>' | Y103: ='Input Summary'!B10 -> 3ST HSM | Z103: '!F12,"AADT Out of Range","AADT OK") | AB103: =if(' | AC103: Input | AD103: '!M52>' | AE103: ='Input Summary'!B10 -> 3ST HSM | AF103: '!F13,"AADT Out of Range","AADT OK")
V104: =V105&W105&X105&Y105&Z105 -> =if('Input'!D55>'3ST HSM'!F12,"AADT Out of Range","AADT OK") | AB104: =AB105&AC105&AD105&AE105&AF105 -> =if('Input'!D57>'3ST HSM'!F13,"AADT Out of Range","AADT OK")
V105: =if(' | W105: Input | X105: '!D55>' | Y105: ='Input Summary'!B10 -> 3ST HSM | Z105: '!F12,"AADT Out of Range","AADT OK") | AB105: =if(' | AC105: Input | AD105: '!D57>' | AE105: ='Input Summary'!B10 -> 3ST HSM | AF105: '!F13,"AADT Out of Range","AADT OK")
A107: DO NOT MODIFY
A108: Crash Type, Severity | B108: Predicted Crash Frequency per Year (From Prediction Spreadsheet [Predicted Nb]) | E108: Year:
E109: 1 | F109: 2 | G109: 3 | H109: 4 | I109: 5 | J109: 6 | K109: 7 | L109: 8 | M109: 9 | N109: 10 | O109: Design Year
A110: MV, FI | B110: =$A$118&$B$118&"'!N71" -> ='Year '!N71 | E110: =$A$118&E109&"'!N71" -> ='Year 1'!N71 | F110: =$A$118&F109&"'!N71" -> ='Year 2'!N71 | G110: ='Year 3'!N71 | H110: ='Year 4'!N71 | I110: ='Year 5'!N71 | J110: ='Year 6'!N71 | K110: ='Year 7'!N71 | L110: ='Year 8'!N71 | M110: ='Year 9'!N71 | N110: ='Year 10'!N71 | O110: ="'"&O109&"'!N71" -> 'Design Year'!N71
A111: MV, PDO | B111: =$A$118&$B$118&"'!N73" -> ='Year '!N73 | E111: =$A$118&E109&"'!N73" -> ='Year 1'!N73 | F111: =$A$118&F109&"'!N73" -> ='Year 2'!N73 | G111: ='Year 3'!N73 | H111: ='Year 4'!N73 | I111: ='Year 5'!N73 | J111: ='Year 6'!N73 | K111: ='Year 7'!N73 | L111: ='Year 8'!N73 | M111: ='Year 9'!N73 | N111: ='Year 10'!N73 | O111: ="'"&O109&"'!N73" -> 'Design Year'!N73
A112: SV, FI | B112: =$A$118&$B$118&"'!N117" -> ='Year '!N117 | E112: =$A$118&E109&"'!N117" -> ='Year 1'!N117 | F112: =$A$118&F109&"'!N117" -> ='Year 2'!N117 | G112: ='Year 3'!N117 | H112: ='Year 4'!N117 | I112: ='Year 5'!N117 | J112: ='Year 6'!N117 | K112: ='Year 7'!N117 | L112: ='Year 8'!N117 | M112: ='Year 9'!N117 | N112: ='Year 10'!N117 | O112: ="'"&O109&"'!N117" -> 'Design Year'!N117
A113: SV, PDO | B113: =$A$118&$B$118&"'!N119" -> ='Year '!N119 | E113: =$A$118&E109&"'!N119" -> ='Year 1'!N119 | F113: =$A$118&F109&"'!N119" -> ='Year 2'!N119 | G113: ='Year 3'!N119 | H113: ='Year 4'!N119 | I113: ='Year 5'!N119 | J113: ='Year 6'!N119 | K113: ='Year 7'!N119 | L113: ='Year 8'!N119 | M113: ='Year 9'!N119 | N113: ='Year 10'!N119 | O113: ="'"&O109&"'!N119" -> 'Design Year'!N119
A114: Ped, FI | B114: =$A$118&$B$118&"'!N158" -> ='Year '!N158 | E114: =$A$118&E109&"'!K158" -> ='Year 1'!K158 | F114: ='Year 2'!K158 | G114: ='Year 3'!K158 | H114: ='Year 4'!K158 | I114: ='Year 5'!K158 | J114: ='Year 6'!K158 | K114: ='Year 7'!K158 | L114: ='Year 8'!K158 | M114: ='Year 9'!K158 | N114: ='Year 10'!K158 | O114: ="'"&O109&"'!K158" -> 'Design Year'!K158
A115: Ped, PDO | B115: 0 | E115: 0 | F115: 0 | G115: 0 | H115: 0 | I115: 0 | J115: 0 | K115: 0 | L115: 0 | M115: 0 | N115: 0 | O115: 0
A116: Bike, FI | B116: =$A$118&$B$118&"'!M169" -> ='Year '!M169 | E116: =$A$118&E109&"'!K169" -> ='Year 1'!K169 | F116: ='Year 2'!K169 | G116: ='Year 3'!K169 | H116: ='Year 4'!K169 | I116: ='Year 5'!K169 | J116: ='Year 6'!K169 | K116: ='Year 7'!K169 | L116: ='Year 8'!K169 | M116: ='Year 9'!K169 | N116: ='Year 10'!K169 | O116: ="'"&O109&"'!K169" -> 'Design Year'!K169
A117: Bike, PDO | B117: 0 | E117: 0 | F117: 0 | G117: 0 | H117: 0 | I117: 0 | J117: 0 | K117: 0 | L117: 0 | M117: 0 | N117: 0 | O117: 0
A118: ='Year
A120: DO NOT MODIFY - For Design Year Calc
A121: Crash Type, Severity | B121: Future Predicted Crash Frequency per Year (From Prediction Spreadsheet [Predicted Nb])
A122: MV, FI | B122: =$A$130&$B$130&"'!N71" -> ='Design Year'!N71
A123: MV, PDO | B123: =$A$130&$B$130&"'!N73" -> ='Design Year'!N73
A124: SV, FI | B124: =$A$130&$B$130&"'!N117" -> ='Design Year'!N117
A125: SV, PDO | B125: =$A$130&$B$130&"'!N119" -> ='Design Year'!N119
A126: Ped, FI | B126: =$A$130&$B$130&"'!M158" -> ='Design Year'!M158
A127: Ped, PDO | B127: 0
A128: Bike, FI | B128: =$A$130&$B$130&"'!K169" -> ='Design Year'!K169
A129: Bike, PDO | B129: 0
A130: ='Design Year | C130: N71
A135: CMF Calculations:
A136: Not Applicable
A137: Multiplicative
A138: Additive
A139: Dominant Effect
A140: Dominant Common Residuals
A143: Alternative 1
A144: Crash Type, Severity | B144: Multiplicative | C144: Additive Calc | D144: Additive < 0 Round | E144: Dominant Effect | F144: Dominant Common Residuals Step 1 | G144: Dominant Common Residuals Result
A145: MV, ALL | B145: =IF(AND(Input!B76="Multiplicative",Input!C76<>"",Input!E76<>""),IF(AND(Input!C76<1,Input!E76<1),"ERROR Check Input",Input!C76*Input!E76),"") ->  | C145: =IF(AND(Input!B76="Additive",Input!C76<>"",Input!E76<>""),1-((1-Input!C76)+(1-Input!E76)),"") ->  | D145: =IF(C145="","",IF(C145<=0,0,C145)) ->  | E145: =IF(AND(Input!B76="Dominant Effect",Input!C76<>"",Input!E76<>""),MIN(Input!C76,Input!E76),"") ->  | F145: =IF(AND(Input!B76="Dominant Common Residuals",Input!C76<>"",Input!E76<>""),MIN(Input!C76,Input!E76),"") ->  | G145: =IF(F145<>"",MIN(Input!C76,Input!E76,(Input!C76*Input!E76)^F145),"") -> 
A146: MV, FI | B146: =IF(AND(Input!B77="Multiplicative",Input!C77<>"",Input!E77<>""),IF(AND(Input!C77<1,Input!E77<1),"ERROR Check Input",Input!C77*Input!E77),"") ->  | C146: =IF(AND(Input!B77="Additive",Input!C77<>"",Input!E77<>""),1-((1-Input!C77)+(1-Input!E77)),"") ->  | D146: =IF(AND(Input!B77="Additive",Input!C77<>"",Input!E77<>""),1-((1-Input!C77)+(1-Input!E77)),"") ->  | E146: =IF(AND(Input!B77="Dominant Effect",Input!C77<>"",Input!E77<>""),MIN(Input!C77,Input!E77),"") ->  | F146: =IF(AND(Input!B77="Dominant Common Residuals",Input!C77<>"",Input!E77<>""),MIN(Input!C77,Input!E77),"") ->  | G146: =IF(F146<>"",MIN(Input!C77,Input!E77,(Input!C77*Input!E77)^F146),"") -> 
A147: SV, ALL | B147: =IF(AND(Input!B78="Multiplicative",Input!C78<>"",Input!E78<>""),IF(AND(Input!C78<1,Input!E78<1),"ERROR Check Input",Input!C78*Input!E78),"") ->  | C147: =IF(AND(Input!B78="Additive",Input!C78<>"",Input!E78<>""),1-((1-Input!C78)+(1-Input!E78)),"") ->  | D147: =IF(AND(Input!B78="Additive",Input!C78<>"",Input!E78<>""),1-((1-Input!C78)+(1-Input!E78)),"") ->  | E147: =IF(AND(Input!B78="Dominant Effect",Input!C78<>"",Input!E78<>""),MIN(Input!C78,Input!E78),"") ->  | F147: =IF(AND(Input!B78="Dominant Common Residuals",Input!C78<>"",Input!E78<>""),MIN(Input!C78,Input!E78),"") ->  | G147: =IF(F147<>"",MIN(Input!C78,Input!E78,(Input!C78*Input!E78)^F147),"") -> 
A148: SV, FI | B148: =IF(AND(Input!B79="Multiplicative",Input!C79<>"",Input!E79<>""),IF(AND(Input!C79<1,Input!E79<1),"ERROR Check Input",Input!C79*Input!E79),"") ->  | C148: =IF(AND(Input!B79="Additive",Input!C79<>"",Input!E79<>""),1-((1-Input!C79)+(1-Input!E79)),"") ->  | D148: =IF(AND(Input!B79="Additive",Input!C79<>"",Input!E79<>""),1-((1-Input!C79)+(1-Input!E79)),"") ->  | E148: =IF(AND(Input!B79="Dominant Effect",Input!C79<>"",Input!E79<>""),MIN(Input!C79,Input!E79),"") ->  | F148: =IF(AND(Input!B79="Dominant Common Residuals",Input!C79<>"",Input!E79<>""),MIN(Input!C79,Input!E79),"") ->  | G148: =IF(F148<>"",MIN(Input!C79,Input!E79,(Input!C79*Input!E79)^F148),"") -> 
A149: Ped, ALL | B149: =IF(AND(Input!B80="Multiplicative",Input!C80<>"",Input!E80<>""),IF(AND(Input!C80<1,Input!E80<1),"ERROR Check Input",Input!C80*Input!E80),"") ->  | C149: =IF(AND(Input!B80="Additive",Input!C80<>"",Input!E80<>""),1-((1-Input!C80)+(1-Input!E80)),"") ->  | D149: =IF(AND(Input!B80="Additive",Input!C80<>"",Input!E80<>""),1-((1-Input!C80)+(1-Input!E80)),"") ->  | E149: =IF(AND(Input!B80="Dominant Effect",Input!C80<>"",Input!E80<>""),MIN(Input!C80,Input!E80),"") ->  | F149: =IF(AND(Input!B80="Dominant Common Residuals",Input!C80<>"",Input!E80<>""),MIN(Input!C80,Input!E80),"") ->  | G149: =IF(F149<>"",MIN(Input!C80,Input!E80,(Input!C80*Input!E80)^F149),"") -> 
A150: Ped, FI | B150: =IF(AND(Input!B81="Multiplicative",Input!C81<>"",Input!E81<>""),IF(AND(Input!C81<1,Input!E81<1),"ERROR Check Input",Input!C81*Input!E81),"") ->  | C150: =IF(AND(Input!B81="Additive",Input!C81<>"",Input!E81<>""),1-((1-Input!C81)+(1-Input!E81)),"") ->  | D150: =IF(AND(Input!B81="Additive",Input!C81<>"",Input!E81<>""),1-((1-Input!C81)+(1-Input!E81)),"") ->  | E150: =IF(AND(Input!B81="Dominant Effect",Input!C81<>"",Input!E81<>""),MIN(Input!C81,Input!E81),"") ->  | F150: =IF(AND(Input!B81="Dominant Common Residuals",Input!C81<>"",Input!E81<>""),MIN(Input!C81,Input!E81),"") ->  | G150: =IF(F150<>"",MIN(Input!C81,Input!E81,(Input!C81*Input!E81)^F150),"") -> 
A151: Bike, ALL | B151: =IF(AND(Input!B82="Multiplicative",Input!C82<>"",Input!E82<>""),IF(AND(Input!C82<1,Input!E82<1),"ERROR Check Input",Input!C82*Input!E82),"") ->  | C151: =IF(AND(Input!B82="Additive",Input!C82<>"",Input!E82<>""),1-((1-Input!C82)+(1-Input!E82)),"") ->  | D151: =IF(AND(Input!B82="Additive",Input!C82<>"",Input!E82<>""),1-((1-Input!C82)+(1-Input!E82)),"") ->  | E151: =IF(AND(Input!B82="Dominant Effect",Input!C82<>"",Input!E82<>""),MIN(Input!C82,Input!E82),"") ->  | F151: =IF(AND(Input!B82="Dominant Common Residuals",Input!C82<>"",Input!E82<>""),MIN(Input!C82,Input!E82),"") ->  | G151: =IF(F151<>"",MIN(Input!C82,Input!E82,(Input!C82*Input!E82)^F151),"") -> 
A152: Bike, FI | B152: =IF(AND(Input!B83="Multiplicative",Input!C83<>"",Input!E83<>""),IF(AND(Input!C83<1,Input!E83<1),"ERROR Check Input",Input!C83*Input!E83),"") ->  | C152: =IF(AND(Input!B83="Additive",Input!C83<>"",Input!E83<>""),1-((1-Input!C83)+(1-Input!E83)),"") ->  | D152: =IF(AND(Input!B83="Additive",Input!C83<>"",Input!E83<>""),1-((1-Input!C83)+(1-Input!E83)),"") ->  | E152: =IF(AND(Input!B83="Dominant Effect",Input!C83<>"",Input!E83<>""),MIN(Input!C83,Input!E83),"") ->  | F152: =IF(AND(Input!B83="Dominant Common Residuals",Input!C83<>"",Input!E83<>""),MIN(Input!C83,Input!E83),"") ->  | G152: =IF(F152<>"",MIN(Input!C83,Input!E83,(Input!C83*Input!E83)^F152),"") -> 
A155: Alternative 2
A156: Crash Type, Severity | B156: Multiplicative | C156: Additive Calc | D156: Additive < 0 Round | E156: Dominant Effect | F156: Dominant Common Residuals Step 1 | G156: Dominant Common Residuals Result
A157: MV, ALL | B157: =IF(AND(Input!B88="Multiplicative",Input!C88<>"",Input!E88<>""),IF(AND(Input!C88<1,Input!E88<1),"ERROR Check Input",Input!C88*Input!E88),"") ->  | C157: =IF(AND(Input!B88="Additive",Input!C88<>"",Input!E88<>""),1-((1-Input!C88)+(1-Input!E88)),"") ->  | D157: =IF(C157="","",IF(C157<=0,0,C157)) ->  | E157: =IF(AND(Input!B88="Dominant Effect",Input!C88<>"",Input!E88<>""),MIN(Input!C88,Input!E88),"") ->  | F157: =IF(AND(Input!B88="Dominant Common Residuals",Input!C88<>"",Input!E88<>""),MIN(Input!C88,Input!E88),"") ->  | G157: =IF(F157<>"",MIN(Input!C88,Input!E88,(Input!C88*Input!E88)^F157),"") -> 
A158: MV, FI | B158: =IF(AND(Input!B89="Multiplicative",Input!C89<>"",Input!E89<>""),IF(AND(Input!C89<1,Input!E89<1),"ERROR Check Input",Input!C89*Input!E89),"") ->  | C158: =IF(AND(Input!B89="Additive",Input!C89<>"",Input!E89<>""),1-((1-Input!C89)+(1-Input!E89)),"") ->  | D158: =IF(AND(Input!B89="Additive",Input!C89<>"",Input!E89<>""),1-((1-Input!C89)+(1-Input!E89)),"") ->  | E158: =IF(AND(Input!B89="Dominant Effect",Input!C89<>"",Input!E89<>""),MIN(Input!C89,Input!E89),"") ->  | F158: =IF(AND(Input!B89="Dominant Common Residuals",Input!C89<>"",Input!E89<>""),MIN(Input!C89,Input!E89),"") ->  | G158: =IF(F158<>"",MIN(Input!C89,Input!E89,(Input!C89*Input!E89)^F158),"") -> 
A159: SV, ALL | B159: =IF(AND(Input!B90="Multiplicative",Input!C90<>"",Input!E90<>""),IF(AND(Input!C90<1,Input!E90<1),"ERROR Check Input",Input!C90*Input!E90),"") ->  | C159: =IF(AND(Input!B90="Additive",Input!C90<>"",Input!E90<>""),1-((1-Input!C90)+(1-Input!E90)),"") ->  | D159: =IF(AND(Input!B90="Additive",Input!C90<>"",Input!E90<>""),1-((1-Input!C90)+(1-Input!E90)),"") ->  | E159: =IF(AND(Input!B90="Dominant Effect",Input!C90<>"",Input!E90<>""),MIN(Input!C90,Input!E90),"") ->  | F159: =IF(AND(Input!B90="Dominant Common Residuals",Input!C90<>"",Input!E90<>""),MIN(Input!C90,Input!E90),"") ->  | G159: =IF(F159<>"",MIN(Input!C90,Input!E90,(Input!C90*Input!E90)^F159),"") -> 
A160: SV, FI | B160: =IF(AND(Input!B91="Multiplicative",Input!C91<>"",Input!E91<>""),IF(AND(Input!C91<1,Input!E91<1),"ERROR Check Input",Input!C91*Input!E91),"") ->  | C160: =IF(AND(Input!B91="Additive",Input!C91<>"",Input!E91<>""),1-((1-Input!C91)+(1-Input!E91)),"") ->  | D160: =IF(AND(Input!B91="Additive",Input!C91<>"",Input!E91<>""),1-((1-Input!C91)+(1-Input!E91)),"") ->  | E160: =IF(AND(Input!B91="Dominant Effect",Input!C91<>"",Input!E91<>""),MIN(Input!C91,Input!E91),"") ->  | F160: =IF(AND(Input!B91="Dominant Common Residuals",Input!C91<>"",Input!E91<>""),MIN(Input!C91,Input!E91),"") ->  | G160: =IF(F160<>"",MIN(Input!C91,Input!E91,(Input!C91*Input!E91)^F160),"") -> 
A161: Ped, ALL | B161: =IF(AND(Input!B92="Multiplicative",Input!C92<>"",Input!E92<>""),IF(AND(Input!C92<1,Input!E92<1),"ERROR Check Input",Input!C92*Input!E92),"") ->  | C161: =IF(AND(Input!B92="Additive",Input!C92<>"",Input!E92<>""),1-((1-Input!C92)+(1-Input!E92)),"") ->  | D161: =IF(AND(Input!B92="Additive",Input!C92<>"",Input!E92<>""),1-((1-Input!C92)+(1-Input!E92)),"") ->  | E161: =IF(AND(Input!B92="Dominant Effect",Input!C92<>"",Input!E92<>""),MIN(Input!C92,Input!E92),"") ->  | F161: =IF(AND(Input!B92="Dominant Common Residuals",Input!C92<>"",Input!E92<>""),MIN(Input!C92,Input!E92),"") ->  | G161: =IF(F161<>"",MIN(Input!C92,Input!E92,(Input!C92*Input!E92)^F161),"") -> 
A162: Ped, FI | B162: =IF(AND(Input!B93="Multiplicative",Input!C93<>"",Input!E93<>""),IF(AND(Input!C93<1,Input!E93<1),"ERROR Check Input",Input!C93*Input!E93),"") ->  | C162: =IF(AND(Input!B93="Additive",Input!C93<>"",Input!E93<>""),1-((1-Input!C93)+(1-Input!E93)),"") ->  | D162: =IF(AND(Input!B93="Additive",Input!C93<>"",Input!E93<>""),1-((1-Input!C93)+(1-Input!E93)),"") ->  | E162: =IF(AND(Input!B93="Dominant Effect",Input!C93<>"",Input!E93<>""),MIN(Input!C93,Input!E93),"") ->  | F162: =IF(AND(Input!B93="Dominant Common Residuals",Input!C93<>"",Input!E93<>""),MIN(Input!C93,Input!E93),"") ->  | G162: =IF(F162<>"",MIN(Input!C93,Input!E93,(Input!C93*Input!E93)^F162),"") -> 
A163: Bike, ALL | B163: =IF(AND(Input!B94="Multiplicative",Input!C94<>"",Input!E94<>""),IF(AND(Input!C94<1,Input!E94<1),"ERROR Check Input",Input!C94*Input!E94),"") ->  | C163: =IF(AND(Input!B94="Additive",Input!C94<>"",Input!E94<>""),1-((1-Input!C94)+(1-Input!E94)),"") ->  | D163: =IF(AND(Input!B94="Additive",Input!C94<>"",Input!E94<>""),1-((1-Input!C94)+(1-Input!E94)),"") ->  | E163: =IF(AND(Input!B94="Dominant Effect",Input!C94<>"",Input!E94<>""),MIN(Input!C94,Input!E94),"") ->  | F163: =IF(AND(Input!B94="Dominant Common Residuals",Input!C94<>"",Input!E94<>""),MIN(Input!C94,Input!E94),"") ->  | G163: =IF(F163<>"",MIN(Input!C94,Input!E94,(Input!C94*Input!E94)^F163),"") -> 
A164: Bike, FI | B164: =IF(AND(Input!B95="Multiplicative",Input!C95<>"",Input!E95<>""),IF(AND(Input!C95<1,Input!E95<1),"ERROR Check Input",Input!C95*Input!E95),"") ->  | C164: =IF(AND(Input!B95="Additive",Input!C95<>"",Input!E95<>""),1-((1-Input!C95)+(1-Input!E95)),"") ->  | D164: =IF(AND(Input!B95="Additive",Input!C95<>"",Input!E95<>""),1-((1-Input!C95)+(1-Input!E95)),"") ->  | E164: =IF(AND(Input!B95="Dominant Effect",Input!C95<>"",Input!E95<>""),MIN(Input!C95,Input!E95),"") ->  | F164: =IF(AND(Input!B95="Dominant Common Residuals",Input!C95<>"",Input!E95<>""),MIN(Input!C95,Input!E95),"") ->  | G164: =IF(F164<>"",MIN(Input!C95,Input!E95,(Input!C95*Input!E95)^F164),"") -> 
A167: Alternative 3
A168: Crash Type, Severity | B168: Multiplicative | C168: Additive Calc | D168: Additive < 0 Round | E168: Dominant Effect | F168: Dominant Common Residuals Step 1 | G168: Dominant Common Residuals Result
A169: MV, ALL | B169: =IF(AND(Input!B100="Multiplicative",Input!C100<>"",Input!E100<>""),IF(AND(Input!C100<1,Input!E100<1),"ERROR Check Input",Input!C100*Input!E100),"") ->  | C169: =IF(AND(Input!B100="Additive",Input!C100<>"",Input!E100<>""),1-((1-Input!C100)+(1-Input!E100)),"") ->  | D169: =IF(C169="","",IF(C169<=0,0,C169)) ->  | E169: =IF(AND(Input!B100="Dominant Effect",Input!C100<>"",Input!E100<>""),MIN(Input!C100,Input!E100),"") ->  | F169: =IF(AND(Input!B100="Dominant Common Residuals",Input!C100<>"",Input!E100<>""),MIN(Input!C100,Input!E100),"") ->  | G169: =IF(F169<>"",MIN(Input!C100,Input!E100,(Input!C100*Input!E100)^F169),"") -> 
A170: MV, FI | B170: =IF(AND(Input!B101="Multiplicative",Input!C101<>"",Input!E101<>""),IF(AND(Input!C101<1,Input!E101<1),"ERROR Check Input",Input!C101*Input!E101),"") ->  | C170: =IF(AND(Input!B101="Additive",Input!C101<>"",Input!E101<>""),1-((1-Input!C101)+(1-Input!E101)),"") ->  | D170: =IF(AND(Input!B101="Additive",Input!C101<>"",Input!E101<>""),1-((1-Input!C101)+(1-Input!E101)),"") ->  | E170: =IF(AND(Input!B101="Dominant Effect",Input!C101<>"",Input!E101<>""),MIN(Input!C101,Input!E101),"") ->  | F170: =IF(AND(Input!B101="Dominant Common Residuals",Input!C101<>"",Input!E101<>""),MIN(Input!C101,Input!E101),"") ->  | G170: =IF(F170<>"",MIN(Input!C101,Input!E101,(Input!C101*Input!E101)^F170),"") -> 
A171: SV, ALL | B171: =IF(AND(Input!B102="Multiplicative",Input!C102<>"",Input!E102<>""),IF(AND(Input!C102<1,Input!E102<1),"ERROR Check Input",Input!C102*Input!E102),"") ->  | C171: =IF(AND(Input!B102="Additive",Input!C102<>"",Input!E102<>""),1-((1-Input!C102)+(1-Input!E102)),"") ->  | D171: =IF(AND(Input!B102="Additive",Input!C102<>"",Input!E102<>""),1-((1-Input!C102)+(1-Input!E102)),"") ->  | E171: =IF(AND(Input!B102="Dominant Effect",Input!C102<>"",Input!E102<>""),MIN(Input!C102,Input!E102),"") ->  | F171: =IF(AND(Input!B102="Dominant Common Residuals",Input!C102<>"",Input!E102<>""),MIN(Input!C102,Input!E102),"") ->  | G171: =IF(F171<>"",MIN(Input!C102,Input!E102,(Input!C102*Input!E102)^F171),"") -> 
A172: SV, FI | B172: =IF(AND(Input!B103="Multiplicative",Input!C103<>"",Input!E103<>""),IF(AND(Input!C103<1,Input!E103<1),"ERROR Check Input",Input!C103*Input!E103),"") ->  | C172: =IF(AND(Input!B103="Additive",Input!C103<>"",Input!E103<>""),1-((1-Input!C103)+(1-Input!E103)),"") ->  | D172: =IF(AND(Input!B103="Additive",Input!C103<>"",Input!E103<>""),1-((1-Input!C103)+(1-Input!E103)),"") ->  | E172: =IF(AND(Input!B103="Dominant Effect",Input!C103<>"",Input!E103<>""),MIN(Input!C103,Input!E103),"") ->  | F172: =IF(AND(Input!B103="Dominant Common Residuals",Input!C103<>"",Input!E103<>""),MIN(Input!C103,Input!E103),"") ->  | G172: =IF(F172<>"",MIN(Input!C103,Input!E103,(Input!C103*Input!E103)^F172),"") -> 
A173: Ped, ALL | B173: =IF(AND(Input!B104="Multiplicative",Input!C104<>"",Input!E104<>""),IF(AND(Input!C104<1,Input!E104<1),"ERROR Check Input",Input!C104*Input!E104),"") ->  | C173: =IF(AND(Input!B104="Additive",Input!C104<>"",Input!E104<>""),1-((1-Input!C104)+(1-Input!E104)),"") ->  | D173: =IF(AND(Input!B104="Additive",Input!C104<>"",Input!E104<>""),1-((1-Input!C104)+(1-Input!E104)),"") ->  | E173: =IF(AND(Input!B104="Dominant Effect",Input!C104<>"",Input!E104<>""),MIN(Input!C104,Input!E104),"") ->  | F173: =IF(AND(Input!B104="Dominant Common Residuals",Input!C104<>"",Input!E104<>""),MIN(Input!C104,Input!E104),"") ->  | G173: =IF(F173<>"",MIN(Input!C104,Input!E104,(Input!C104*Input!E104)^F173),"") -> 
A174: Ped, FI | B174: =IF(AND(Input!B105="Multiplicative",Input!C105<>"",Input!E105<>""),IF(AND(Input!C105<1,Input!E105<1),"ERROR Check Input",Input!C105*Input!E105),"") ->  | C174: =IF(AND(Input!B105="Additive",Input!C105<>"",Input!E105<>""),1-((1-Input!C105)+(1-Input!E105)),"") ->  | D174: =IF(AND(Input!B105="Additive",Input!C105<>"",Input!E105<>""),1-((1-Input!C105)+(1-Input!E105)),"") ->  | E174: =IF(AND(Input!B105="Dominant Effect",Input!C105<>"",Input!E105<>""),MIN(Input!C105,Input!E105),"") ->  | F174: =IF(AND(Input!B105="Dominant Common Residuals",Input!C105<>"",Input!E105<>""),MIN(Input!C105,Input!E105),"") ->  | G174: =IF(F174<>"",MIN(Input!C105,Input!E105,(Input!C105*Input!E105)^F174),"") -> 
A175: Bike, ALL | B175: =IF(AND(Input!B106="Multiplicative",Input!C106<>"",Input!E106<>""),IF(AND(Input!C106<1,Input!E106<1),"ERROR Check Input",Input!C106*Input!E106),"") ->  | C175: =IF(AND(Input!B106="Additive",Input!C106<>"",Input!E106<>""),1-((1-Input!C106)+(1-Input!E106)),"") ->  | D175: =IF(AND(Input!B106="Additive",Input!C106<>"",Input!E106<>""),1-((1-Input!C106)+(1-Input!E106)),"") ->  | E175: =IF(AND(Input!B106="Dominant Effect",Input!C106<>"",Input!E106<>""),MIN(Input!C106,Input!E106),"") ->  | F175: =IF(AND(Input!B106="Dominant Common Residuals",Input!C106<>"",Input!E106<>""),MIN(Input!C106,Input!E106),"") ->  | G175: =IF(F175<>"",MIN(Input!C106,Input!E106,(Input!C106*Input!E106)^F175),"") -> 
A176: Bike, FI | B176: =IF(AND(Input!B107="Multiplicative",Input!C107<>"",Input!E107<>""),IF(AND(Input!C107<1,Input!E107<1),"ERROR Check Input",Input!C107*Input!E107),"") ->  | C176: =IF(AND(Input!B107="Additive",Input!C107<>"",Input!E107<>""),1-((1-Input!C107)+(1-Input!E107)),"") ->  | D176: =IF(AND(Input!B107="Additive",Input!C107<>"",Input!E107<>""),1-((1-Input!C107)+(1-Input!E107)),"") ->  | E176: =IF(AND(Input!B107="Dominant Effect",Input!C107<>"",Input!E107<>""),MIN(Input!C107,Input!E107),"") ->  | F176: =IF(AND(Input!B107="Dominant Common Residuals",Input!C107<>"",Input!E107<>""),MIN(Input!C107,Input!E107),"") ->  | G176: =IF(F176<>"",MIN(Input!C107,Input!E107,(Input!C107*Input!E107)^F176),"") -> 
A179: Alternative 4
A180: Crash Type, Severity | B180: Multiplicative | C180: Additive Calc | D180: Additive < 0 Round | E180: Dominant Effect | F180: Dominant Common Residuals Step 1 | G180: Dominant Common Residuals Result
A181: MV, ALL | B181: =IF(AND(Input!B112="Multiplicative",Input!C112<>"",Input!E112<>""),IF(AND(Input!C112<1,Input!E112<1),"ERROR Check Input",Input!C112*Input!E112),"") ->  | C181: =IF(AND(Input!B112="Additive",Input!C112<>"",Input!E112<>""),1-((1-Input!C112)+(1-Input!E112)),"") ->  | D181: =IF(C181="","",IF(C181<=0,0,C181)) ->  | E181: =IF(AND(Input!B112="Dominant Effect",Input!C112<>"",Input!E112<>""),MIN(Input!C112,Input!E112),"") ->  | F181: =IF(AND(Input!B112="Dominant Common Residuals",Input!C112<>"",Input!E112<>""),MIN(Input!C112,Input!E112),"") ->  | G181: =IF(F181<>"",MIN(Input!C112,Input!E112,(Input!C112*Input!E112)^F181),"") -> 
A182: MV, FI | B182: =IF(AND(Input!B113="Multiplicative",Input!C113<>"",Input!E113<>""),IF(AND(Input!C113<1,Input!E113<1),"ERROR Check Input",Input!C113*Input!E113),"") ->  | C182: =IF(AND(Input!B113="Additive",Input!C113<>"",Input!E113<>""),1-((1-Input!C113)+(1-Input!E113)),"") ->  | D182: =IF(AND(Input!B113="Additive",Input!C113<>"",Input!E113<>""),1-((1-Input!C113)+(1-Input!E113)),"") ->  | E182: =IF(AND(Input!B113="Dominant Effect",Input!C113<>"",Input!E113<>""),MIN(Input!C113,Input!E113),"") ->  | F182: =IF(AND(Input!B113="Dominant Common Residuals",Input!C113<>"",Input!E113<>""),MIN(Input!C113,Input!E113),"") ->  | G182: =IF(F182<>"",MIN(Input!C113,Input!E113,(Input!C113*Input!E113)^F182),"") -> 
A183: SV, ALL | B183: =IF(AND(Input!B114="Multiplicative",Input!C114<>"",Input!E114<>""),IF(AND(Input!C114<1,Input!E114<1),"ERROR Check Input",Input!C114*Input!E114),"") ->  | C183: =IF(AND(Input!B114="Additive",Input!C114<>"",Input!E114<>""),1-((1-Input!C114)+(1-Input!E114)),"") ->  | D183: =IF(AND(Input!B114="Additive",Input!C114<>"",Input!E114<>""),1-((1-Input!C114)+(1-Input!E114)),"") ->  | E183: =IF(AND(Input!B114="Dominant Effect",Input!C114<>"",Input!E114<>""),MIN(Input!C114,Input!E114),"") ->  | F183: =IF(AND(Input!B114="Dominant Common Residuals",Input!C114<>"",Input!E114<>""),MIN(Input!C114,Input!E114),"") ->  | G183: =IF(F183<>"",MIN(Input!C114,Input!E114,(Input!C114*Input!E114)^F183),"") -> 
A184: SV, FI | B184: =IF(AND(Input!B115="Multiplicative",Input!C115<>"",Input!E115<>""),IF(AND(Input!C115<1,Input!E115<1),"ERROR Check Input",Input!C115*Input!E115),"") ->  | C184: =IF(AND(Input!B115="Additive",Input!C115<>"",Input!E115<>""),1-((1-Input!C115)+(1-Input!E115)),"") ->  | D184: =IF(AND(Input!B115="Additive",Input!C115<>"",Input!E115<>""),1-((1-Input!C115)+(1-Input!E115)),"") ->  | E184: =IF(AND(Input!B115="Dominant Effect",Input!C115<>"",Input!E115<>""),MIN(Input!C115,Input!E115),"") ->  | F184: =IF(AND(Input!B115="Dominant Common Residuals",Input!C115<>"",Input!E115<>""),MIN(Input!C115,Input!E115),"") ->  | G184: =IF(F184<>"",MIN(Input!C115,Input!E115,(Input!C115*Input!E115)^F184),"") -> 
A185: Ped, ALL | B185: =IF(AND(Input!B116="Multiplicative",Input!C116<>"",Input!E116<>""),IF(AND(Input!C116<1,Input!E116<1),"ERROR Check Input",Input!C116*Input!E116),"") ->  | C185: =IF(AND(Input!B116="Additive",Input!C116<>"",Input!E116<>""),1-((1-Input!C116)+(1-Input!E116)),"") ->  | D185: =IF(AND(Input!B116="Additive",Input!C116<>"",Input!E116<>""),1-((1-Input!C116)+(1-Input!E116)),"") ->  | E185: =IF(AND(Input!B116="Dominant Effect",Input!C116<>"",Input!E116<>""),MIN(Input!C116,Input!E116),"") ->  | F185: =IF(AND(Input!B116="Dominant Common Residuals",Input!C116<>"",Input!E116<>""),MIN(Input!C116,Input!E116),"") ->  | G185: =IF(F185<>"",MIN(Input!C116,Input!E116,(Input!C116*Input!E116)^F185),"") -> 
A186: Ped, FI | B186: =IF(AND(Input!B117="Multiplicative",Input!C117<>"",Input!E117<>""),IF(AND(Input!C117<1,Input!E117<1),"ERROR Check Input",Input!C117*Input!E117),"") ->  | C186: =IF(AND(Input!B117="Additive",Input!C117<>"",Input!E117<>""),1-((1-Input!C117)+(1-Input!E117)),"") ->  | D186: =IF(AND(Input!B117="Additive",Input!C117<>"",Input!E117<>""),1-((1-Input!C117)+(1-Input!E117)),"") ->  | E186: =IF(AND(Input!B117="Dominant Effect",Input!C117<>"",Input!E117<>""),MIN(Input!C117,Input!E117),"") ->  | F186: =IF(AND(Input!B117="Dominant Common Residuals",Input!C117<>"",Input!E117<>""),MIN(Input!C117,Input!E117),"") ->  | G186: =IF(F186<>"",MIN(Input!C117,Input!E117,(Input!C117*Input!E117)^F186),"") -> 
A187: Bike, ALL | B187: =IF(AND(Input!B118="Multiplicative",Input!C118<>"",Input!E118<>""),IF(AND(Input!C118<1,Input!E118<1),"ERROR Check Input",Input!C118*Input!E118),"") ->  | C187: =IF(AND(Input!B118="Additive",Input!C118<>"",Input!E118<>""),1-((1-Input!C118)+(1-Input!E118)),"") ->  | D187: =IF(AND(Input!B118="Additive",Input!C118<>"",Input!E118<>""),1-((1-Input!C118)+(1-Input!E118)),"") ->  | E187: =IF(AND(Input!B118="Dominant Effect",Input!C118<>"",Input!E118<>""),MIN(Input!C118,Input!E118),"") ->  | F187: =IF(AND(Input!B118="Dominant Common Residuals",Input!C118<>"",Input!E118<>""),MIN(Input!C118,Input!E118),"") ->  | G187: =IF(F187<>"",MIN(Input!C118,Input!E118,(Input!C118*Input!E118)^F187),"") -> 
A188: Bike, FI | B188: =IF(AND(Input!B119="Multiplicative",Input!C119<>"",Input!E119<>""),IF(AND(Input!C119<1,Input!E119<1),"ERROR Check Input",Input!C119*Input!E119),"") ->  | C188: =IF(AND(Input!B119="Additive",Input!C119<>"",Input!E119<>""),1-((1-Input!C119)+(1-Input!E119)),"") ->  | D188: =IF(AND(Input!B119="Additive",Input!C119<>"",Input!E119<>""),1-((1-Input!C119)+(1-Input!E119)),"") ->  | E188: =IF(AND(Input!B119="Dominant Effect",Input!C119<>"",Input!E119<>""),MIN(Input!C119,Input!E119),"") ->  | F188: =IF(AND(Input!B119="Dominant Common Residuals",Input!C119<>"",Input!E119<>""),MIN(Input!C119,Input!E119),"") ->  | G188: =IF(F188<>"",MIN(Input!C119,Input!E119,(Input!C119*Input!E119)^F188),"") -> 
